Workbook

Sheet Учет данных
C5: Выберите неделю: | G5: Текущая неделя: | I5: =VLOOKUP(D6,Справочник!A:D,3,0) -> Январь неделя 1 (01-10 янв.) | N5: Показатель: | O5: 15
D6: =for_code!B1 -> 1 | E6: 1 | F6: =LEFT(I5,SEARCH(" ",I5)-1) -> Январь
C8: Учет данных | M8: add | O8: Динамика показателей за месяц/ воронка продаж
C9: Показатели | D9: Директ | E9: Adwords | F9: Вконтакте | G9: Поиск | H9: Прямые | I9: Ссылки | J9: Instagram | K9: … | L9: … | M9: Итого | P9: =for_code!B2 -> 1 | Q9: =VLOOKUP(P9,Справочник!G:I,3,0) -> 1 | R9: =VLOOKUP(P9,Справочник!G:J,4,0) -> 0 | S9: =VLOOKUP(D6,Справочник!A:E,4,0) -> 1 | T9: 15
C10: Клики | M10: =SUM(D10:L10) -> 0 | R10: =MAX(R11:R14) -> 
C11: Заявки | M11: 0 | N11: =Q11-$Q$9 -> 2 | O11: =LEFT($F$6,3) & " нед1" -> Янв нед1 | P11: =(S9-1)*4 -> 0 | Q11: =2+17*P11+$Q$9 -> 3 | R11: =IF(OFFSET(БД!$K:$K,Q11-1,0,1,1)=0, NA(),OFFSET(БД!$K:$K,Q11-1,0,1,1)) ->  | S11: 1
C12: Встречи | M12: 0 | N12: =Q12-$Q$9 -> 19 | O12: =LEFT($F$6,3) & " нед2" -> Янв нед2 | P12: =P11+1 -> 1 | Q12: =2+17*P12+$Q$9 -> 20 | R12: =IF(OFFSET(БД!$K:$K,Q12-1,0,1,1)=0, NA(),OFFSET(БД!$K:$K,Q12-1,0,1,1)) ->  | S12: 0
C13: Продажи | M13: 0 | N13: 36 | O13: =LEFT($F$6,3) & " нед3" -> Янв нед3 | P13: =P12+1 -> 2 | Q13: =2+17*P13+$Q$9 -> 37 | R13: =IF(OFFSET(БД!$K:$K,Q13-1,0,1,1)=0, NA(),OFFSET(БД!$K:$K,Q13-1,0,1,1)) ->  | S13: 1
C14: Выручка | M14: 0 | N14: 53 | O14: =LEFT($F$6,3) & " нед4" -> Янв нед4 | P14: 3 | Q14: =2+17*P14+$Q$9 -> 54 | R14: =IF(OFFSET(БД!$K:$K,Q14-1,0,1,1)=0, NA(),OFFSET(БД!$K:$K,Q14-1,0,1,1)) ->  | S14: 0
C15: Затраты | M15: 0
C17: CVклили-заявки | D17: =IF(D10>0,D11/D10,0) -> 0 | E17: =IF(E10>0,E11/E10,0) -> 0 | F17: 0 | G17: 0 | H17: 0 | I17: 0 | J17: 0 | K17: =IF(K10>0,K11/K10,0) -> 0 | L17: 0 | M17: 0
C18: CVзаявки-встречи | D18: =IF(D11>0,D12/D11,0) -> 0 | E18: =IF(E11>0,E12/E11,0) -> 0 | F18: 0 | G18: 0 | H18: 0 | I18: 0 | J18: 0 | K18: =IF(K11>0,K12/K11,0) -> 0 | L18: 0 | M18: 0
C19: CVвстречи-продажи | D19: =IF(D12>0,D13/D12,0) -> 0 | E19: =IF(E12>0,E13/E12,0) -> 0 | F19: 0 | G19: 0 | H19: 0 | I19: 0 | J19: 0 | K19: =IF(K12>0,K13/K12,0) -> 0 | L19: 0 | M19: 0
C20: Цена клика | D20: =IF(D10>0,D$15/D10,0) -> 0 | E20: =IF(E10>0,E$15/E10,0) -> 0 | F20: 0 | G20: 0 | H20: 0 | I20: 0 | J20: 0 | K20: =IF(K10>0,K$15/K10,0) -> 0 | L20: 0 | M20: 0
C21: Цена заявки | D21: =IF(D11>0,D$15/D11,0) -> 0 | E21: =IF(E11>0,E$15/E11,0) -> 0 | F21: 0 | G21: 0 | H21: 0 | I21: 0 | J21: 0 | K21: =IF(K11>0,K$15/K11,0) -> 0 | L21: 0 | M21: 0
C22: Цена клиента | D22: =IF(D12>0,D$15/D12,0) -> 0 | E22: =IF(E12>0,E$15/E12,0) -> 0 | F22: =IF(F12>0,F$15/F12,0) -> 0 | G22: 0 | H22: 0 | I22: 0 | J22: 0 | K22: =IF(K12>0,K$15/K12,0) -> 0 | L22: 0 | M22: 0
C23: Средний чек | D23: =IF(D13>0,D14/D13,0) -> 0 | E23: =IF(E13>0,E14/E13,0) -> 0 | F23: 0 | G23: 0 | H23: 0 | I23: 0 | J23: 0 | K23: =IF(K13>0,K14/K13,0) -> 0 | L23: 0 | M23: 0
C24: ROI | D24: =IF(D15>0,(D14-D15)/D15,0) -> 0 | E24: =IF(E15>0,(E14-E15)/E15,0) -> 0 | F24: 0 | G24: 0 | H24: 0 | I24: 0 | J24: 0 | K24: =IF(K15>0,(K14-K15)/K15,0) -> 0 | L24: 0 | M24: 0
C25: Прибыль (-затраты) | D25: =D14-D15 -> 0 | E25: =E14-E15 -> 0 | F25: 0 | G25: 0 | H25: 0 | I25: 0 | J25: 0 | K25: =K14-K15 -> 0 | L25: 0 | M25: 0
C28: Сводные данные за месяц | O28: Учет доп. затрат | S28: Воронка продаж 5.0 ©
C29: ="Всего за " &F6 -> Всего за Январь | D29: =D9 -> Директ | E29: Adwords | F29: Вконтакте | G29: Поиск | H29: Прямые | I29: Ссылки | J29: Instagram | K29: … | L29: … | M29: Итого | O29: ="Дополнительные затраты за " &VLOOKUP(D6,Справочник!A:E,5,0) -> Дополнительные затраты за Январь | S29: Автор: Евгений Новиков (http://vk.com/truejacko)
C30: Клики | D30: =OFFSET(БД!B:B,$N$11+$V30,0,1,1)+OFFSET(БД!B:B,$N$12+$V30,0,1,1)+OFFSET(БД!B:B,$N$13+$V30,0,1,1)+OFFSET(БД!B:B,$N$14+$V30,0,1,1) -> 0 | E30: =OFFSET(БД!C:C,$N$11+$V30,0,1,1)+OFFSET(БД!C:C,$N$12+$V30,0,1,1)+OFFSET(БД!C:C,$N$13+$V30,0,1,1)+OFFSET(БД!C:C,$N$14+$V30,0,1,1) -> 0 | F30: =OFFSET(БД!D:D,$N$11+$V30,0,1,1)+OFFSET(БД!D:D,$N$12+$V30,0,1,1)+OFFSET(БД!D:D,$N$13+$V30,0,1,1)+OFFSET(БД!D:D,$N$14+$V30,0,1,1) -> 0 | G30: =OFFSET(БД!E:E,$N$11+$V30,0,1,1)+OFFSET(БД!E:E,$N$12+$V30,0,1,1)+OFFSET(БД!E:E,$N$13+$V30,0,1,1)+OFFSET(БД!E:E,$N$14+$V30,0,1,1) -> 0 | H30: =OFFSET(БД!F:F,$N$11+$V30,0,1,1)+OFFSET(БД!F:F,$N$12+$V30,0,1,1)+OFFSET(БД!F:F,$N$13+$V30,0,1,1)+OFFSET(БД!F:F,$N$14+$V30,0,1,1) -> 0 | I30: =OFFSET(БД!G:G,$N$11+$V30,0,1,1)+OFFSET(БД!G:G,$N$12+$V30,0,1,1)+OFFSET(БД!G:G,$N$13+$V30,0,1,1)+OFFSET(БД!G:G,$N$14+$V30,0,1,1) -> 0 | J30: =OFFSET(БД!H:H,$N$11+$V30,0,1,1)+OFFSET(БД!H:H,$N$12+$V30,0,1,1)+OFFSET(БД!H:H,$N$13+$V30,0,1,1)+OFFSET(БД!H:H,$N$14+$V30,0,1,1) -> 0 | K30: =OFFSET(БД!H:H,$N$11+$V30,0,1,1)+OFFSET(БД!H:H,$N$12+$V30,0,1,1)+OFFSET(БД!H:H,$N$13+$V30,0,1,1)+OFFSET(БД!H:H,$N$14+$V30,0,1,1) -> 0 | L30: =OFFSET(БД!J:J,$N$11+$V30,0,1,1)+OFFSET(БД!J:J,$N$12+$V30,0,1,1)+OFFSET(БД!J:J,$N$13+$V30,0,1,1)+OFFSET(БД!J:J,$N$14+$V30,0,1,1) -> 0 | M30: =OFFSET(БД!K:K,$N$11+$V30,0,1,1)+OFFSET(БД!K:K,$N$12+$V30,0,1,1)+OFFSET(БД!K:K,$N$13+$V30,0,1,1)+OFFSET(БД!K:K,$N$14+$V30,0,1,1) -> 0 | O30: Описание | P30: Cумма | S30: Данный файл распространяется только через официальную группу vk.com/voronkaprodazh или сайт voronkaexcel.ru | V30: 0
C31: Заявки | D31: =OFFSET(БД!B:B,$N$11+$V31,0,1,1)+OFFSET(БД!B:B,$N$12+$V31,0,1,1)+OFFSET(БД!B:B,$N$13+$V31,0,1,1)+OFFSET(БД!B:B,$N$14+$V31,0,1,1) -> 0 | E31: =OFFSET(БД!C:C,$N$11+$V31,0,1,1)+OFFSET(БД!C:C,$N$12+$V31,0,1,1)+OFFSET(БД!C:C,$N$13+$V31,0,1,1)+OFFSET(БД!C:C,$N$14+$V31,0,1,1) -> 0 | F31: =OFFSET(БД!D:D,$N$11+$V31,0,1,1)+OFFSET(БД!D:D,$N$12+$V31,0,1,1)+OFFSET(БД!D:D,$N$13+$V31,0,1,1)+OFFSET(БД!D:D,$N$14+$V31,0,1,1) -> 0 | G31: =OFFSET(БД!E:E,$N$11+$V31,0,1,1)+OFFSET(БД!E:E,$N$12+$V31,0,1,1)+OFFSET(БД!E:E,$N$13+$V31,0,1,1)+OFFSET(БД!E:E,$N$14+$V31,0,1,1) -> 0 | H31: =OFFSET(БД!F:F,$N$11+$V31,0,1,1)+OFFSET(БД!F:F,$N$12+$V31,0,1,1)+OFFSET(БД!F:F,$N$13+$V31,0,1,1)+OFFSET(БД!F:F,$N$14+$V31,0,1,1) -> 0 | I31: =OFFSET(БД!G:G,$N$11+$V31,0,1,1)+OFFSET(БД!G:G,$N$12+$V31,0,1,1)+OFFSET(БД!G:G,$N$13+$V31,0,1,1)+OFFSET(БД!G:G,$N$14+$V31,0,1,1) -> 0 | J31: =OFFSET(БД!H:H,$N$11+$V31,0,1,1)+OFFSET(БД!H:H,$N$12+$V31,0,1,1)+OFFSET(БД!H:H,$N$13+$V31,0,1,1)+OFFSET(БД!H:H,$N$14+$V31,0,1,1) -> 0 | K31: =OFFSET(БД!H:H,$N$11+$V31,0,1,1)+OFFSET(БД!H:H,$N$12+$V31,0,1,1)+OFFSET(БД!H:H,$N$13+$V31,0,1,1)+OFFSET(БД!H:H,$N$14+$V31,0,1,1) -> 0 | L31: =OFFSET(БД!J:J,$N$11+$V31,0,1,1)+OFFSET(БД!J:J,$N$12+$V31,0,1,1)+OFFSET(БД!J:J,$N$13+$V31,0,1,1)+OFFSET(БД!J:J,$N$14+$V31,0,1,1) -> 0 | M31: =OFFSET(БД!K:K,$N$11+$V31,0,1,1)+OFFSET(БД!K:K,$N$12+$V31,0,1,1)+OFFSET(БД!K:K,$N$13+$V31,0,1,1)+OFFSET(БД!K:K,$N$14+$V31,0,1,1) -> 0 | V31: 1
C32: Встречи | D32: =OFFSET(БД!B:B,$N$11+$V32,0,1,1)+OFFSET(БД!B:B,$N$12+$V32,0,1,1)+OFFSET(БД!B:B,$N$13+$V32,0,1,1)+OFFSET(БД!B:B,$N$14+$V32,0,1,1) -> 0 | E32: =OFFSET(БД!C:C,$N$11+$V32,0,1,1)+OFFSET(БД!C:C,$N$12+$V32,0,1,1)+OFFSET(БД!C:C,$N$13+$V32,0,1,1)+OFFSET(БД!C:C,$N$14+$V32,0,1,1) -> 0 | F32: =OFFSET(БД!D:D,$N$11+$V32,0,1,1)+OFFSET(БД!D:D,$N$12+$V32,0,1,1)+OFFSET(БД!D:D,$N$13+$V32,0,1,1)+OFFSET(БД!D:D,$N$14+$V32,0,1,1) -> 0 | G32: =OFFSET(БД!E:E,$N$11+$V32,0,1,1)+OFFSET(БД!E:E,$N$12+$V32,0,1,1)+OFFSET(БД!E:E,$N$13+$V32,0,1,1)+OFFSET(БД!E:E,$N$14+$V32,0,1,1) -> 0 | H32: =OFFSET(БД!F:F,$N$11+$V32,0,1,1)+OFFSET(БД!F:F,$N$12+$V32,0,1,1)+OFFSET(БД!F:F,$N$13+$V32,0,1,1)+OFFSET(БД!F:F,$N$14+$V32,0,1,1) -> 0 | I32: =OFFSET(БД!G:G,$N$11+$V32,0,1,1)+OFFSET(БД!G:G,$N$12+$V32,0,1,1)+OFFSET(БД!G:G,$N$13+$V32,0,1,1)+OFFSET(БД!G:G,$N$14+$V32,0,1,1) -> 0 | J32: =OFFSET(БД!H:H,$N$11+$V32,0,1,1)+OFFSET(БД!H:H,$N$12+$V32,0,1,1)+OFFSET(БД!H:H,$N$13+$V32,0,1,1)+OFFSET(БД!H:H,$N$14+$V32,0,1,1) -> 0 | K32: =OFFSET(БД!H:H,$N$11+$V32,0,1,1)+OFFSET(БД!H:H,$N$12+$V32,0,1,1)+OFFSET(БД!H:H,$N$13+$V32,0,1,1)+OFFSET(БД!H:H,$N$14+$V32,0,1,1) -> 0 | L32: =OFFSET(БД!J:J,$N$11+$V32,0,1,1)+OFFSET(БД!J:J,$N$12+$V32,0,1,1)+OFFSET(БД!J:J,$N$13+$V32,0,1,1)+OFFSET(БД!J:J,$N$14+$V32,0,1,1) -> 0 | M32: =OFFSET(БД!K:K,$N$11+$V32,0,1,1)+OFFSET(БД!K:K,$N$12+$V32,0,1,1)+OFFSET(БД!K:K,$N$13+$V32,0,1,1)+OFFSET(БД!K:K,$N$14+$V32,0,1,1) -> 0 | V32: 2
C33: Продажи | D33: =OFFSET(БД!B:B,$N$11+$V33,0,1,1)+OFFSET(БД!B:B,$N$12+$V33,0,1,1)+OFFSET(БД!B:B,$N$13+$V33,0,1,1)+OFFSET(БД!B:B,$N$14+$V33,0,1,1) -> 0 | E33: =OFFSET(БД!C:C,$N$11+$V33,0,1,1)+OFFSET(БД!C:C,$N$12+$V33,0,1,1)+OFFSET(БД!C:C,$N$13+$V33,0,1,1)+OFFSET(БД!C:C,$N$14+$V33,0,1,1) -> 0 | F33: =OFFSET(БД!D:D,$N$11+$V33,0,1,1)+OFFSET(БД!D:D,$N$12+$V33,0,1,1)+OFFSET(БД!D:D,$N$13+$V33,0,1,1)+OFFSET(БД!D:D,$N$14+$V33,0,1,1) -> 0 | G33: =OFFSET(БД!E:E,$N$11+$V33,0,1,1)+OFFSET(БД!E:E,$N$12+$V33,0,1,1)+OFFSET(БД!E:E,$N$13+$V33,0,1,1)+OFFSET(БД!E:E,$N$14+$V33,0,1,1) -> 0 | H33: =OFFSET(БД!F:F,$N$11+$V33,0,1,1)+OFFSET(БД!F:F,$N$12+$V33,0,1,1)+OFFSET(БД!F:F,$N$13+$V33,0,1,1)+OFFSET(БД!F:F,$N$14+$V33,0,1,1) -> 0 | I33: =OFFSET(БД!G:G,$N$11+$V33,0,1,1)+OFFSET(БД!G:G,$N$12+$V33,0,1,1)+OFFSET(БД!G:G,$N$13+$V33,0,1,1)+OFFSET(БД!G:G,$N$14+$V33,0,1,1) -> 0 | J33: =OFFSET(БД!H:H,$N$11+$V33,0,1,1)+OFFSET(БД!H:H,$N$12+$V33,0,1,1)+OFFSET(БД!H:H,$N$13+$V33,0,1,1)+OFFSET(БД!H:H,$N$14+$V33,0,1,1) -> 0 | K33: =OFFSET(БД!H:H,$N$11+$V33,0,1,1)+OFFSET(БД!H:H,$N$12+$V33,0,1,1)+OFFSET(БД!H:H,$N$13+$V33,0,1,1)+OFFSET(БД!H:H,$N$14+$V33,0,1,1) -> 0 | L33: =OFFSET(БД!J:J,$N$11+$V33,0,1,1)+OFFSET(БД!J:J,$N$12+$V33,0,1,1)+OFFSET(БД!J:J,$N$13+$V33,0,1,1)+OFFSET(БД!J:J,$N$14+$V33,0,1,1) -> 0 | M33: =OFFSET(БД!K:K,$N$11+$V33,0,1,1)+OFFSET(БД!K:K,$N$12+$V33,0,1,1)+OFFSET(БД!K:K,$N$13+$V33,0,1,1)+OFFSET(БД!K:K,$N$14+$V33,0,1,1) -> 0 | V33: 3
C34: Выручка | D34: =OFFSET(БД!B:B,$N$11+$V34,0,1,1)+OFFSET(БД!B:B,$N$12+$V34,0,1,1)+OFFSET(БД!B:B,$N$13+$V34,0,1,1)+OFFSET(БД!B:B,$N$14+$V34,0,1,1) -> 0 | E34: =OFFSET(БД!C:C,$N$11+$V34,0,1,1)+OFFSET(БД!C:C,$N$12+$V34,0,1,1)+OFFSET(БД!C:C,$N$13+$V34,0,1,1)+OFFSET(БД!C:C,$N$14+$V34,0,1,1) -> 0 | F34: =OFFSET(БД!D:D,$N$11+$V34,0,1,1)+OFFSET(БД!D:D,$N$12+$V34,0,1,1)+OFFSET(БД!D:D,$N$13+$V34,0,1,1)+OFFSET(БД!D:D,$N$14+$V34,0,1,1) -> 0 | G34: =OFFSET(БД!E:E,$N$11+$V34,0,1,1)+OFFSET(БД!E:E,$N$12+$V34,0,1,1)+OFFSET(БД!E:E,$N$13+$V34,0,1,1)+OFFSET(БД!E:E,$N$14+$V34,0,1,1) -> 0 | H34: =OFFSET(БД!F:F,$N$11+$V34,0,1,1)+OFFSET(БД!F:F,$N$12+$V34,0,1,1)+OFFSET(БД!F:F,$N$13+$V34,0,1,1)+OFFSET(БД!F:F,$N$14+$V34,0,1,1) -> 0 | I34: =OFFSET(БД!G:G,$N$11+$V34,0,1,1)+OFFSET(БД!G:G,$N$12+$V34,0,1,1)+OFFSET(БД!G:G,$N$13+$V34,0,1,1)+OFFSET(БД!G:G,$N$14+$V34,0,1,1) -> 0 | J34: =OFFSET(БД!H:H,$N$11+$V34,0,1,1)+OFFSET(БД!H:H,$N$12+$V34,0,1,1)+OFFSET(БД!H:H,$N$13+$V34,0,1,1)+OFFSET(БД!H:H,$N$14+$V34,0,1,1) -> 0 | K34: =OFFSET(БД!H:H,$N$11+$V34,0,1,1)+OFFSET(БД!H:H,$N$12+$V34,0,1,1)+OFFSET(БД!H:H,$N$13+$V34,0,1,1)+OFFSET(БД!H:H,$N$14+$V34,0,1,1) -> 0 | L34: =OFFSET(БД!J:J,$N$11+$V34,0,1,1)+OFFSET(БД!J:J,$N$12+$V34,0,1,1)+OFFSET(БД!J:J,$N$13+$V34,0,1,1)+OFFSET(БД!J:J,$N$14+$V34,0,1,1) -> 0 | M34: =OFFSET(БД!K:K,$N$11+$V34,0,1,1)+OFFSET(БД!K:K,$N$12+$V34,0,1,1)+OFFSET(БД!K:K,$N$13+$V34,0,1,1)+OFFSET(БД!K:K,$N$14+$V34,0,1,1) -> 0 | S34: Если вы оказались жертвой пиратов, прошу вас перечислить удобную сумму в качестве благодарности за данный продукт автору: яндекс 410011194833509 Webmoney: R304185449904, Z627412013302 QIWI: +79851745518
C35: затраты | D35: =OFFSET(БД!B:B,$N$11+$V35,0,1,1)+OFFSET(БД!B:B,$N$12+$V35,0,1,1)+OFFSET(БД!B:B,$N$13+$V35,0,1,1)+OFFSET(БД!B:B,$N$14+$V35,0,1,1) -> 0 | E35: =OFFSET(БД!C:C,$N$11+$V35,0,1,1)+OFFSET(БД!C:C,$N$12+$V35,0,1,1)+OFFSET(БД!C:C,$N$13+$V35,0,1,1)+OFFSET(БД!C:C,$N$14+$V35,0,1,1) -> 0 | F35: =OFFSET(БД!D:D,$N$11+$V35,0,1,1)+OFFSET(БД!D:D,$N$12+$V35,0,1,1)+OFFSET(БД!D:D,$N$13+$V35,0,1,1)+OFFSET(БД!D:D,$N$14+$V35,0,1,1) -> 0 | G35: =OFFSET(БД!E:E,$N$11+$V35,0,1,1)+OFFSET(БД!E:E,$N$12+$V35,0,1,1)+OFFSET(БД!E:E,$N$13+$V35,0,1,1)+OFFSET(БД!E:E,$N$14+$V35,0,1,1) -> 0 | H35: =OFFSET(БД!F:F,$N$11+$V35,0,1,1)+OFFSET(БД!F:F,$N$12+$V35,0,1,1)+OFFSET(БД!F:F,$N$13+$V35,0,1,1)+OFFSET(БД!F:F,$N$14+$V35,0,1,1) -> 0 | I35: =OFFSET(БД!G:G,$N$11+$V35,0,1,1)+OFFSET(БД!G:G,$N$12+$V35,0,1,1)+OFFSET(БД!G:G,$N$13+$V35,0,1,1)+OFFSET(БД!G:G,$N$14+$V35,0,1,1) -> 0 | J35: =OFFSET(БД!H:H,$N$11+$V35,0,1,1)+OFFSET(БД!H:H,$N$12+$V35,0,1,1)+OFFSET(БД!H:H,$N$13+$V35,0,1,1)+OFFSET(БД!H:H,$N$14+$V35,0,1,1) -> 0 | K35: =OFFSET(БД!H:H,$N$11+$V35,0,1,1)+OFFSET(БД!H:H,$N$12+$V35,0,1,1)+OFFSET(БД!H:H,$N$13+$V35,0,1,1)+OFFSET(БД!H:H,$N$14+$V35,0,1,1) -> 0 | L35: =OFFSET(БД!J:J,$N$11+$V35,0,1,1)+OFFSET(БД!J:J,$N$12+$V35,0,1,1)+OFFSET(БД!J:J,$N$13+$V35,0,1,1)+OFFSET(БД!J:J,$N$14+$V35,0,1,1) -> 0 | M35: =OFFSET(БД!K:K,$N$11+$V35,0,1,1)+OFFSET(БД!K:K,$N$12+$V35,0,1,1)+OFFSET(БД!K:K,$N$13+$V35,0,1,1)+OFFSET(БД!K:K,$N$14+$V35,0,1,1) -> 0 | V35: 5
C37: CVклики-заявки | D37: =IF(D30>0,D31/D30,0) -> 0 | E37: =IF(E30>0,E31/E30,0) -> 0 | F37: 0 | G37: 0 | H37: 0 | I37: 0 | J37: 0 | K37: =IF(K30>0,K31/K30,0) -> 0 | L37: 0 | M37: 0 | V37: =CONCATENATE(C30," ", M30) -> Клики 0 | W37: =CONCATENATE(X37," ", ROUND(M37*100,2)&"%") -> CVкл-зая 0% | X37: CVкл-зая
C38: CVзаявки-встречи | D38: =IF(D31>0,D32/D31,0) -> 0 | E38: =IF(E31>0,E32/E31,0) -> 0 | F38: 0 | G38: 0 | H38: 0 | I38: 0 | J38: 0 | K38: =IF(K31>0,K32/K31,0) -> 0 | L38: 0 | M38: 0 | V38: =CONCATENATE(C31," ", M31) -> Заявки 0 | W38: =CONCATENATE(X38," ", ROUND(M38*100,2)&"%") -> CVзая-встр 0% | X38: CVзая-встр
C39: CVвстречи-продажи | D39: =IF(D32>0,D33/D32,0) -> 0 | E39: =IF(E32>0,E33/E32,0) -> 0 | F39: 0 | G39: 0 | H39: 0 | I39: 0 | J39: 0 | K39: =IF(K32>0,K33/K32,0) -> 0 | L39: 0 | M39: 0 | V39: =CONCATENATE(C32," ", M32) -> Встречи 0 | W39: =CONCATENATE(X39," ", ROUND(M39*100,2)&"%") -> CVвстр-прод 0% | X39: CVвстр-прод
C40: Цена клика | D40: =IF(D30>0,D$35/D30,0) -> 0 | E40: =IF(E30>0,E$35/E30,0) -> 0 | F40: 0 | G40: 0 | H40: 0 | I40: 0 | J40: 0 | K40: 0 | L40: 0 | M40: 0 | V40: =CONCATENATE(C33," ", M33) -> Продажи 0
C41: Цена заявки | D41: =IF(D31>0,D$35/D31,0) -> 0 | E41: =IF(E31>0,E$35/E31,0) -> 0 | F41: 0 | G41: 0 | H41: 0 | I41: 0 | J41: 0 | K41: 0 | L41: 0 | M41: 0 | S41: Вы можете заказать индивидуальную таблицу или доработки текущей, обратившись на мейл info@kursdirect.ru | V41: =CONCATENATE(C34," ",TEXT(M34,"#\ ##0р.")) -> Выручка 0р.
C42: Цена клиента | D42: =IF(D32>0,D$35/D32,0) -> 0 | E42: =IF(E32>0,E$35/E32,0) -> 0 | F42: 0 | G42: 0 | H42: 0 | I42: 0 | J42: 0 | K42: 0 | L42: 0 | M42: 0 | V42: =CONCATENATE(C35," ", M35) -> затраты 0
C43: Средн чек | D43: =IF(D33>0,D34/D33,0) -> 0 | E43: =IF(E33>0,E34/E33,0) -> 0 | F43: 0 | G43: 0 | H43: 0 | I43: 0 | J43: 0 | K43: 0 | L43: 0 | M43: 0
C44: ROI | D44: =IF(D35>0,(D34-D35)/D35,0) -> 0 | E44: =IF(E35>0,(E34-E35)/E35,0) -> 0 | F44: 0 | G44: 0 | H44: 0 | I44: 0 | J44: 0 | K44: 0 | L44: 0 | M44: 0
C45: Прибыль (-затраты) | D45: =D34-D35 -> 0 | E45: =E34-E35 -> 0 | F45: 0 | G45: 0 | H45: 0 | I45: 0 | J45: 0 | K45: 0 | L45: 0 | M45: 0 | S45: Закажите скайп-консультацию по ведению воронки от автора (цена 1500р). Пишите на мейл или ВК.
C46: Чистая прибыль (-доп) | D46: =M45-J46 -> 0 | H46: Дополнит. затраты | J46: =P46 -> 0 | O46: Итого: | P46: =SUM(P31:P45) -> 0

Sheet Статистика
BX1: 2 | BY1: 4 | BZ1: 6 | CA1: 8 | CB1: 10 | CC1: 12 | CD1: 14 | CE1: 16 | CF1: 18 | CG1: 20 | CH1: 22 | CI1: 24 | CJ1: 1
BW2: Показатели | BX2: январь | BY2: февраль | BZ2: март | CA2: апрель | CB2: май | CC2: июнь | CD2: июль | CE2: август | CF2: сентябрь | CG2: октябрь | CH2: ноябрь | CI2: декабрь | CJ2: =VLOOKUP(CJ1,Справочник!M:N,2,0) -> Январь | CS2: январь | CT2: февраль | CU2: март | CV2: апрель | CW2: май | CX2: июнь | CY2: июль | CZ2: август | DA2: сентябрь | DB2: октябрь | DC2: ноябрь | DD2: декабрь
BW3: Клики | BX3: =IF((OFFSET(БД!$K:$K,CS$7+$CR3-1,0,1,1)+OFFSET(БД!$K:$K,CS$8+$CR3-1,0,1,1)+OFFSET(БД!$K:$K,CS$9+$CR3-1,0,1,1)+OFFSET(БД!$K:$K,CS$10+$CR3-1,0,1,1))>0,OFFSET(БД!$K:$K,CS$7+$CR3-1,0,1,1)+OFFSET(БД!$K:$K,CS$8+$CR3-1,0,1,1)+OFFSET(БД!$K:$K,CS$9+$CR3-1,0,1,1)+OFFSET(БД!$K:$K,CS$10+$CR3-1,0,1,1),NA()) ->  | BY3: =IF((OFFSET(БД!$K:$K,CT$7+$CR3-1,0,1,1)+OFFSET(БД!$K:$K,CT$8+$CR3-1,0,1,1)+OFFSET(БД!$K:$K,CT$9+$CR3-1,0,1,1)+OFFSET(БД!$K:$K,CT$10+$CR3-1,0,1,1))>0,OFFSET(БД!$K:$K,CT$7+$CR3-1,0,1,1)+OFFSET(БД!$K:$K,CT$8+$CR3-1,0,1,1)+OFFSET(БД!$K:$K,CT$9+$CR3-1,0,1,1)+OFFSET(БД!$K:$K,CT$10+$CR3-1,0,1,1),NA()) ->  | BZ3: =IF((OFFSET(БД!$K:$K,CU$7+$CR3-1,0,1,1)+OFFSET(БД!$K:$K,CU$8+$CR3-1,0,1,1)+OFFSET(БД!$K:$K,CU$9+$CR3-1,0,1,1)+OFFSET(БД!$K:$K,CU$10+$CR3-1,0,1,1))>0,OFFSET(БД!$K:$K,CU$7+$CR3-1,0,1,1)+OFFSET(БД!$K:$K,CU$8+$CR3-1,0,1,1)+OFFSET(БД!$K:$K,CU$9+$CR3-1,0,1,1)+OFFSET(БД!$K:$K,CU$10+$CR3-1,0,1,1),NA()) ->  | CA3: =IF((OFFSET(БД!$K:$K,CV$7+$CR3-1,0,1,1)+OFFSET(БД!$K:$K,CV$8+$CR3-1,0,1,1)+OFFSET(БД!$K:$K,CV$9+$CR3-1,0,1,1)+OFFSET(БД!$K:$K,CV$10+$CR3-1,0,1,1))>0,OFFSET(БД!$K:$K,CV$7+$CR3-1,0,1,1)+OFFSET(БД!$K:$K,CV$8+$CR3-1,0,1,1)+OFFSET(БД!$K:$K,CV$9+$CR3-1,0,1,1)+OFFSET(БД!$K:$K,CV$10+$CR3-1,0,1,1),NA()) ->  | CB3: =IF((OFFSET(БД!$K:$K,CW$7+$CR3-1,0,1,1)+OFFSET(БД!$K:$K,CW$8+$CR3-1,0,1,1)+OFFSET(БД!$K:$K,CW$9+$CR3-1,0,1,1)+OFFSET(БД!$K:$K,CW$10+$CR3-1,0,1,1))>0,OFFSET(БД!$K:$K,CW$7+$CR3-1,0,1,1)+OFFSET(БД!$K:$K,CW$8+$CR3-1,0,1,1)+OFFSET(БД!$K:$K,CW$9+$CR3-1,0,1,1)+OFFSET(БД!$K:$K,CW$10+$CR3-1,0,1,1),NA()) ->  | CC3: =IF((OFFSET(БД!$K:$K,CX$7+$CR3-1,0,1,1)+OFFSET(БД!$K:$K,CX$8+$CR3-1,0,1,1)+OFFSET(БД!$K:$K,CX$9+$CR3-1,0,1,1)+OFFSET(БД!$K:$K,CX$10+$CR3-1,0,1,1))>0,OFFSET(БД!$K:$K,CX$7+$CR3-1,0,1,1)+OFFSET(БД!$K:$K,CX$8+$CR3-1,0,1,1)+OFFSET(БД!$K:$K,CX$9+$CR3-1,0,1,1)+OFFSET(БД!$K:$K,CX$10+$CR3-1,0,1,1),NA()) ->  | CD3: =IF((OFFSET(БД!$K:$K,CY$7+$CR3-1,0,1,1)+OFFSET(БД!$K:$K,CY$8+$CR3-1,0,1,1)+OFFSET(БД!$K:$K,CY$9+$CR3-1,0,1,1)+OFFSET(БД!$K:$K,CY$10+$CR3-1,0,1,1))>0,OFFSET(БД!$K:$K,CY$7+$CR3-1,0,1,1)+OFFSET(БД!$K:$K,CY$8+$CR3-1,0,1,1)+OFFSET(БД!$K:$K,CY$9+$CR3-1,0,1,1)+OFFSET(БД!$K:$K,CY$10+$CR3-1,0,1,1),NA()) ->  | CE3: =IF((OFFSET(БД!$K:$K,CZ$7+$CR3-1,0,1,1)+OFFSET(БД!$K:$K,CZ$8+$CR3-1,0,1,1)+OFFSET(БД!$K:$K,CZ$9+$CR3-1,0,1,1)+OFFSET(БД!$K:$K,CZ$10+$CR3-1,0,1,1))>0,OFFSET(БД!$K:$K,CZ$7+$CR3-1,0,1,1)+OFFSET(БД!$K:$K,CZ$8+$CR3-1,0,1,1)+OFFSET(БД!$K:$K,CZ$9+$CR3-1,0,1,1)+OFFSET(БД!$K:$K,CZ$10+$CR3-1,0,1,1),NA()) ->  | CF3: =IF((OFFSET(БД!$K:$K,DA$7+$CR3-1,0,1,1)+OFFSET(БД!$K:$K,DA$8+$CR3-1,0,1,1)+OFFSET(БД!$K:$K,DA$9+$CR3-1,0,1,1)+OFFSET(БД!$K:$K,DA$10+$CR3-1,0,1,1))>0,OFFSET(БД!$K:$K,DA$7+$CR3-1,0,1,1)+OFFSET(БД!$K:$K,DA$8+$CR3-1,0,1,1)+OFFSET(БД!$K:$K,DA$9+$CR3-1,0,1,1)+OFFSET(БД!$K:$K,DA$10+$CR3-1,0,1,1),NA()) ->  | CG3: =IF((OFFSET(БД!$K:$K,DB$7+$CR3-1,0,1,1)+OFFSET(БД!$K:$K,DB$8+$CR3-1,0,1,1)+OFFSET(БД!$K:$K,DB$9+$CR3-1,0,1,1)+OFFSET(БД!$K:$K,DB$10+$CR3-1,0,1,1))>0,OFFSET(БД!$K:$K,DB$7+$CR3-1,0,1,1)+OFFSET(БД!$K:$K,DB$8+$CR3-1,0,1,1)+OFFSET(БД!$K:$K,DB$9+$CR3-1,0,1,1)+OFFSET(БД!$K:$K,DB$10+$CR3-1,0,1,1),NA()) ->  | CH3: =IF((OFFSET(БД!$K:$K,DC$7+$CR3-1,0,1,1)+OFFSET(БД!$K:$K,DC$8+$CR3-1,0,1,1)+OFFSET(БД!$K:$K,DC$9+$CR3-1,0,1,1)+OFFSET(БД!$K:$K,DC$10+$CR3-1,0,1,1))>0,OFFSET(БД!$K:$K,DC$7+$CR3-1,0,1,1)+OFFSET(БД!$K:$K,DC$8+$CR3-1,0,1,1)+OFFSET(БД!$K:$K,DC$9+$CR3-1,0,1,1)+OFFSET(БД!$K:$K,DC$10+$CR3-1,0,1,1),NA()) ->  | CI3: =IF((OFFSET(БД!$K:$K,DD$7+$CR3-1,0,1,1)+OFFSET(БД!$K:$K,DD$8+$CR3-1,0,1,1)+OFFSET(БД!$K:$K,DD$9+$CR3-1,0,1,1)+OFFSET(БД!$K:$K,DD$10+$CR3-1,0,1,1))>0,OFFSET(БД!$K:$K,DD$7+$CR3-1,0,1,1)+OFFSET(БД!$K:$K,DD$8+$CR3-1,0,1,1)+OFFSET(БД!$K:$K,DD$9+$CR3-1,0,1,1)+OFFSET(БД!$K:$K,DD$10+$CR3-1,0,1,1),NA()) ->  | CJ3: =IF(ABS(OFFSET($BW3,,$CJ$1,1,1))>=10000,ROUND(OFFSET($BW3,,$CJ$1,1,1)/1000,1)&"т",OFFSET($BW3,,$CJ$1,1,1)) ->  | CR3: 0 | CS3: 0 | CT3: =CS6+1 -> 4 | CU3: =CT6+1 -> 8 | CV3: 12 | CW3: 16 | CX3: 20 | CY3: 24 | CZ3: 28 | DA3: 32 | DB3: 36 | DC3: 40 | DD3: 44
BW4: Заявки | BX4: =IF((OFFSET(БД!$K:$K,CS$7+$CR4-1,0,1,1)+OFFSET(БД!$K:$K,CS$8+$CR4-1,0,1,1)+OFFSET(БД!$K:$K,CS$9+$CR4-1,0,1,1)+OFFSET(БД!$K:$K,CS$10+$CR4-1,0,1,1))>0,OFFSET(БД!$K:$K,CS$7+$CR4-1,0,1,1)+OFFSET(БД!$K:$K,CS$8+$CR4-1,0,1,1)+OFFSET(БД!$K:$K,CS$9+$CR4-1,0,1,1)+OFFSET(БД!$K:$K,CS$10+$CR4-1,0,1,1),NA()) ->  | BY4: =IF((OFFSET(БД!$K:$K,CT$7+$CR4-1,0,1,1)+OFFSET(БД!$K:$K,CT$8+$CR4-1,0,1,1)+OFFSET(БД!$K:$K,CT$9+$CR4-1,0,1,1)+OFFSET(БД!$K:$K,CT$10+$CR4-1,0,1,1))>0,OFFSET(БД!$K:$K,CT$7+$CR4-1,0,1,1)+OFFSET(БД!$K:$K,CT$8+$CR4-1,0,1,1)+OFFSET(БД!$K:$K,CT$9+$CR4-1,0,1,1)+OFFSET(БД!$K:$K,CT$10+$CR4-1,0,1,1),NA()) ->  | BZ4: =IF((OFFSET(БД!$K:$K,CU$7+$CR4-1,0,1,1)+OFFSET(БД!$K:$K,CU$8+$CR4-1,0,1,1)+OFFSET(БД!$K:$K,CU$9+$CR4-1,0,1,1)+OFFSET(БД!$K:$K,CU$10+$CR4-1,0,1,1))>0,OFFSET(БД!$K:$K,CU$7+$CR4-1,0,1,1)+OFFSET(БД!$K:$K,CU$8+$CR4-1,0,1,1)+OFFSET(БД!$K:$K,CU$9+$CR4-1,0,1,1)+OFFSET(БД!$K:$K,CU$10+$CR4-1,0,1,1),NA()) ->  | CA4: =IF((OFFSET(БД!$K:$K,CV$7+$CR4-1,0,1,1)+OFFSET(БД!$K:$K,CV$8+$CR4-1,0,1,1)+OFFSET(БД!$K:$K,CV$9+$CR4-1,0,1,1)+OFFSET(БД!$K:$K,CV$10+$CR4-1,0,1,1))>0,OFFSET(БД!$K:$K,CV$7+$CR4-1,0,1,1)+OFFSET(БД!$K:$K,CV$8+$CR4-1,0,1,1)+OFFSET(БД!$K:$K,CV$9+$CR4-1,0,1,1)+OFFSET(БД!$K:$K,CV$10+$CR4-1,0,1,1),NA()) ->  | CB4: =IF((OFFSET(БД!$K:$K,CW$7+$CR4-1,0,1,1)+OFFSET(БД!$K:$K,CW$8+$CR4-1,0,1,1)+OFFSET(БД!$K:$K,CW$9+$CR4-1,0,1,1)+OFFSET(БД!$K:$K,CW$10+$CR4-1,0,1,1))>0,OFFSET(БД!$K:$K,CW$7+$CR4-1,0,1,1)+OFFSET(БД!$K:$K,CW$8+$CR4-1,0,1,1)+OFFSET(БД!$K:$K,CW$9+$CR4-1,0,1,1)+OFFSET(БД!$K:$K,CW$10+$CR4-1,0,1,1),NA()) ->  | CC4: =IF((OFFSET(БД!$K:$K,CX$7+$CR4-1,0,1,1)+OFFSET(БД!$K:$K,CX$8+$CR4-1,0,1,1)+OFFSET(БД!$K:$K,CX$9+$CR4-1,0,1,1)+OFFSET(БД!$K:$K,CX$10+$CR4-1,0,1,1))>0,OFFSET(БД!$K:$K,CX$7+$CR4-1,0,1,1)+OFFSET(БД!$K:$K,CX$8+$CR4-1,0,1,1)+OFFSET(БД!$K:$K,CX$9+$CR4-1,0,1,1)+OFFSET(БД!$K:$K,CX$10+$CR4-1,0,1,1),NA()) ->  | CD4: =IF((OFFSET(БД!$K:$K,CY$7+$CR4-1,0,1,1)+OFFSET(БД!$K:$K,CY$8+$CR4-1,0,1,1)+OFFSET(БД!$K:$K,CY$9+$CR4-1,0,1,1)+OFFSET(БД!$K:$K,CY$10+$CR4-1,0,1,1))>0,OFFSET(БД!$K:$K,CY$7+$CR4-1,0,1,1)+OFFSET(БД!$K:$K,CY$8+$CR4-1,0,1,1)+OFFSET(БД!$K:$K,CY$9+$CR4-1,0,1,1)+OFFSET(БД!$K:$K,CY$10+$CR4-1,0,1,1),NA()) ->  | CE4: =IF((OFFSET(БД!$K:$K,CZ$7+$CR4-1,0,1,1)+OFFSET(БД!$K:$K,CZ$8+$CR4-1,0,1,1)+OFFSET(БД!$K:$K,CZ$9+$CR4-1,0,1,1)+OFFSET(БД!$K:$K,CZ$10+$CR4-1,0,1,1))>0,OFFSET(БД!$K:$K,CZ$7+$CR4-1,0,1,1)+OFFSET(БД!$K:$K,CZ$8+$CR4-1,0,1,1)+OFFSET(БД!$K:$K,CZ$9+$CR4-1,0,1,1)+OFFSET(БД!$K:$K,CZ$10+$CR4-1,0,1,1),NA()) ->  | CF4: =IF((OFFSET(БД!$K:$K,DA$7+$CR4-1,0,1,1)+OFFSET(БД!$K:$K,DA$8+$CR4-1,0,1,1)+OFFSET(БД!$K:$K,DA$9+$CR4-1,0,1,1)+OFFSET(БД!$K:$K,DA$10+$CR4-1,0,1,1))>0,OFFSET(БД!$K:$K,DA$7+$CR4-1,0,1,1)+OFFSET(БД!$K:$K,DA$8+$CR4-1,0,1,1)+OFFSET(БД!$K:$K,DA$9+$CR4-1,0,1,1)+OFFSET(БД!$K:$K,DA$10+$CR4-1,0,1,1),NA()) ->  | CG4: =IF((OFFSET(БД!$K:$K,DB$7+$CR4-1,0,1,1)+OFFSET(БД!$K:$K,DB$8+$CR4-1,0,1,1)+OFFSET(БД!$K:$K,DB$9+$CR4-1,0,1,1)+OFFSET(БД!$K:$K,DB$10+$CR4-1,0,1,1))>0,OFFSET(БД!$K:$K,DB$7+$CR4-1,0,1,1)+OFFSET(БД!$K:$K,DB$8+$CR4-1,0,1,1)+OFFSET(БД!$K:$K,DB$9+$CR4-1,0,1,1)+OFFSET(БД!$K:$K,DB$10+$CR4-1,0,1,1),NA()) ->  | CH4: =IF((OFFSET(БД!$K:$K,DC$7+$CR4-1,0,1,1)+OFFSET(БД!$K:$K,DC$8+$CR4-1,0,1,1)+OFFSET(БД!$K:$K,DC$9+$CR4-1,0,1,1)+OFFSET(БД!$K:$K,DC$10+$CR4-1,0,1,1))>0,OFFSET(БД!$K:$K,DC$7+$CR4-1,0,1,1)+OFFSET(БД!$K:$K,DC$8+$CR4-1,0,1,1)+OFFSET(БД!$K:$K,DC$9+$CR4-1,0,1,1)+OFFSET(БД!$K:$K,DC$10+$CR4-1,0,1,1),NA()) ->  | CI4: =IF((OFFSET(БД!$K:$K,DD$7+$CR4-1,0,1,1)+OFFSET(БД!$K:$K,DD$8+$CR4-1,0,1,1)+OFFSET(БД!$K:$K,DD$9+$CR4-1,0,1,1)+OFFSET(БД!$K:$K,DD$10+$CR4-1,0,1,1))>0,OFFSET(БД!$K:$K,DD$7+$CR4-1,0,1,1)+OFFSET(БД!$K:$K,DD$8+$CR4-1,0,1,1)+OFFSET(БД!$K:$K,DD$9+$CR4-1,0,1,1)+OFFSET(БД!$K:$K,DD$10+$CR4-1,0,1,1),NA()) ->  | CJ4: =IF(ABS(OFFSET($BW4,,$CJ$1,1,1))>=1000,ROUND(OFFSET($BW4,,$CJ$1,1,1)/1000,1)&"т",OFFSET($BW4,,$CJ$1,1,1)) ->  | CR4: 1 | CS4: 1 | CT4: =CT3+1 -> 5 | CU4: =CU3+1 -> 9 | CV4: 13 | CW4: 17 | CX4: 21 | CY4: 25 | CZ4: 29 | DA4: 33 | DB4: 37 | DC4: 41 | DD4: 45
BW5: Встречи | BX5: =IF((OFFSET(БД!$K:$K,CS$7+$CR5-1,0,1,1)+OFFSET(БД!$K:$K,CS$8+$CR5-1,0,1,1)+OFFSET(БД!$K:$K,CS$9+$CR5-1,0,1,1)+OFFSET(БД!$K:$K,CS$10+$CR5-1,0,1,1))>0,OFFSET(БД!$K:$K,CS$7+$CR5-1,0,1,1)+OFFSET(БД!$K:$K,CS$8+$CR5-1,0,1,1)+OFFSET(БД!$K:$K,CS$9+$CR5-1,0,1,1)+OFFSET(БД!$K:$K,CS$10+$CR5-1,0,1,1),NA()) ->  | BY5: =IF((OFFSET(БД!$K:$K,CT$7+$CR5-1,0,1,1)+OFFSET(БД!$K:$K,CT$8+$CR5-1,0,1,1)+OFFSET(БД!$K:$K,CT$9+$CR5-1,0,1,1)+OFFSET(БД!$K:$K,CT$10+$CR5-1,0,1,1))>0,OFFSET(БД!$K:$K,CT$7+$CR5-1,0,1,1)+OFFSET(БД!$K:$K,CT$8+$CR5-1,0,1,1)+OFFSET(БД!$K:$K,CT$9+$CR5-1,0,1,1)+OFFSET(БД!$K:$K,CT$10+$CR5-1,0,1,1),NA()) ->  | BZ5: =IF((OFFSET(БД!$K:$K,CU$7+$CR5-1,0,1,1)+OFFSET(БД!$K:$K,CU$8+$CR5-1,0,1,1)+OFFSET(БД!$K:$K,CU$9+$CR5-1,0,1,1)+OFFSET(БД!$K:$K,CU$10+$CR5-1,0,1,1))>0,OFFSET(БД!$K:$K,CU$7+$CR5-1,0,1,1)+OFFSET(БД!$K:$K,CU$8+$CR5-1,0,1,1)+OFFSET(БД!$K:$K,CU$9+$CR5-1,0,1,1)+OFFSET(БД!$K:$K,CU$10+$CR5-1,0,1,1),NA()) ->  | CA5: =IF((OFFSET(БД!$K:$K,CV$7+$CR5-1,0,1,1)+OFFSET(БД!$K:$K,CV$8+$CR5-1,0,1,1)+OFFSET(БД!$K:$K,CV$9+$CR5-1,0,1,1)+OFFSET(БД!$K:$K,CV$10+$CR5-1,0,1,1))>0,OFFSET(БД!$K:$K,CV$7+$CR5-1,0,1,1)+OFFSET(БД!$K:$K,CV$8+$CR5-1,0,1,1)+OFFSET(БД!$K:$K,CV$9+$CR5-1,0,1,1)+OFFSET(БД!$K:$K,CV$10+$CR5-1,0,1,1),NA()) ->  | CB5: =IF((OFFSET(БД!$K:$K,CW$7+$CR5-1,0,1,1)+OFFSET(БД!$K:$K,CW$8+$CR5-1,0,1,1)+OFFSET(БД!$K:$K,CW$9+$CR5-1,0,1,1)+OFFSET(БД!$K:$K,CW$10+$CR5-1,0,1,1))>0,OFFSET(БД!$K:$K,CW$7+$CR5-1,0,1,1)+OFFSET(БД!$K:$K,CW$8+$CR5-1,0,1,1)+OFFSET(БД!$K:$K,CW$9+$CR5-1,0,1,1)+OFFSET(БД!$K:$K,CW$10+$CR5-1,0,1,1),NA()) ->  | CC5: =IF((OFFSET(БД!$K:$K,CX$7+$CR5-1,0,1,1)+OFFSET(БД!$K:$K,CX$8+$CR5-1,0,1,1)+OFFSET(БД!$K:$K,CX$9+$CR5-1,0,1,1)+OFFSET(БД!$K:$K,CX$10+$CR5-1,0,1,1))>0,OFFSET(БД!$K:$K,CX$7+$CR5-1,0,1,1)+OFFSET(БД!$K:$K,CX$8+$CR5-1,0,1,1)+OFFSET(БД!$K:$K,CX$9+$CR5-1,0,1,1)+OFFSET(БД!$K:$K,CX$10+$CR5-1,0,1,1),NA()) ->  | CD5: =IF((OFFSET(БД!$K:$K,CY$7+$CR5-1,0,1,1)+OFFSET(БД!$K:$K,CY$8+$CR5-1,0,1,1)+OFFSET(БД!$K:$K,CY$9+$CR5-1,0,1,1)+OFFSET(БД!$K:$K,CY$10+$CR5-1,0,1,1))>0,OFFSET(БД!$K:$K,CY$7+$CR5-1,0,1,1)+OFFSET(БД!$K:$K,CY$8+$CR5-1,0,1,1)+OFFSET(БД!$K:$K,CY$9+$CR5-1,0,1,1)+OFFSET(БД!$K:$K,CY$10+$CR5-1,0,1,1),NA()) ->  | CE5: =IF((OFFSET(БД!$K:$K,CZ$7+$CR5-1,0,1,1)+OFFSET(БД!$K:$K,CZ$8+$CR5-1,0,1,1)+OFFSET(БД!$K:$K,CZ$9+$CR5-1,0,1,1)+OFFSET(БД!$K:$K,CZ$10+$CR5-1,0,1,1))>0,OFFSET(БД!$K:$K,CZ$7+$CR5-1,0,1,1)+OFFSET(БД!$K:$K,CZ$8+$CR5-1,0,1,1)+OFFSET(БД!$K:$K,CZ$9+$CR5-1,0,1,1)+OFFSET(БД!$K:$K,CZ$10+$CR5-1,0,1,1),NA()) ->  | CF5: =IF((OFFSET(БД!$K:$K,DA$7+$CR5-1,0,1,1)+OFFSET(БД!$K:$K,DA$8+$CR5-1,0,1,1)+OFFSET(БД!$K:$K,DA$9+$CR5-1,0,1,1)+OFFSET(БД!$K:$K,DA$10+$CR5-1,0,1,1))>0,OFFSET(БД!$K:$K,DA$7+$CR5-1,0,1,1)+OFFSET(БД!$K:$K,DA$8+$CR5-1,0,1,1)+OFFSET(БД!$K:$K,DA$9+$CR5-1,0,1,1)+OFFSET(БД!$K:$K,DA$10+$CR5-1,0,1,1),NA()) ->  | CG5: =IF((OFFSET(БД!$K:$K,DB$7+$CR5-1,0,1,1)+OFFSET(БД!$K:$K,DB$8+$CR5-1,0,1,1)+OFFSET(БД!$K:$K,DB$9+$CR5-1,0,1,1)+OFFSET(БД!$K:$K,DB$10+$CR5-1,0,1,1))>0,OFFSET(БД!$K:$K,DB$7+$CR5-1,0,1,1)+OFFSET(БД!$K:$K,DB$8+$CR5-1,0,1,1)+OFFSET(БД!$K:$K,DB$9+$CR5-1,0,1,1)+OFFSET(БД!$K:$K,DB$10+$CR5-1,0,1,1),NA()) ->  | CH5: =IF((OFFSET(БД!$K:$K,DC$7+$CR5-1,0,1,1)+OFFSET(БД!$K:$K,DC$8+$CR5-1,0,1,1)+OFFSET(БД!$K:$K,DC$9+$CR5-1,0,1,1)+OFFSET(БД!$K:$K,DC$10+$CR5-1,0,1,1))>0,OFFSET(БД!$K:$K,DC$7+$CR5-1,0,1,1)+OFFSET(БД!$K:$K,DC$8+$CR5-1,0,1,1)+OFFSET(БД!$K:$K,DC$9+$CR5-1,0,1,1)+OFFSET(БД!$K:$K,DC$10+$CR5-1,0,1,1),NA()) ->  | CI5: =IF((OFFSET(БД!$K:$K,DD$7+$CR5-1,0,1,1)+OFFSET(БД!$K:$K,DD$8+$CR5-1,0,1,1)+OFFSET(БД!$K:$K,DD$9+$CR5-1,0,1,1)+OFFSET(БД!$K:$K,DD$10+$CR5-1,0,1,1))>0,OFFSET(БД!$K:$K,DD$7+$CR5-1,0,1,1)+OFFSET(БД!$K:$K,DD$8+$CR5-1,0,1,1)+OFFSET(БД!$K:$K,DD$9+$CR5-1,0,1,1)+OFFSET(БД!$K:$K,DD$10+$CR5-1,0,1,1),NA()) ->  | CJ5: =IF(ABS(OFFSET($BW5,,$CJ$1,1,1))>=1000,ROUND(OFFSET($BW5,,$CJ$1,1,1)/1000,1)&"т",OFFSET($BW5,,$CJ$1,1,1)) ->  | CR5: 2 | CS5: 2 | CT5: =CT4+1 -> 6 | CU5: 10 | CV5: 14 | CW5: 18 | CX5: 22 | CY5: 26 | CZ5: 30 | DA5: 34 | DB5: 38 | DC5: 42 | DD5: 46
BW6: Продажи | BX6: =IF((OFFSET(БД!$K:$K,CS$7+$CR6-1,0,1,1)+OFFSET(БД!$K:$K,CS$8+$CR6-1,0,1,1)+OFFSET(БД!$K:$K,CS$9+$CR6-1,0,1,1)+OFFSET(БД!$K:$K,CS$10+$CR6-1,0,1,1))>0,OFFSET(БД!$K:$K,CS$7+$CR6-1,0,1,1)+OFFSET(БД!$K:$K,CS$8+$CR6-1,0,1,1)+OFFSET(БД!$K:$K,CS$9+$CR6-1,0,1,1)+OFFSET(БД!$K:$K,CS$10+$CR6-1,0,1,1),NA()) ->  | BY6: =IF((OFFSET(БД!$K:$K,CT$7+$CR6-1,0,1,1)+OFFSET(БД!$K:$K,CT$8+$CR6-1,0,1,1)+OFFSET(БД!$K:$K,CT$9+$CR6-1,0,1,1)+OFFSET(БД!$K:$K,CT$10+$CR6-1,0,1,1))>0,OFFSET(БД!$K:$K,CT$7+$CR6-1,0,1,1)+OFFSET(БД!$K:$K,CT$8+$CR6-1,0,1,1)+OFFSET(БД!$K:$K,CT$9+$CR6-1,0,1,1)+OFFSET(БД!$K:$K,CT$10+$CR6-1,0,1,1),NA()) ->  | BZ6: =IF((OFFSET(БД!$K:$K,CU$7+$CR6-1,0,1,1)+OFFSET(БД!$K:$K,CU$8+$CR6-1,0,1,1)+OFFSET(БД!$K:$K,CU$9+$CR6-1,0,1,1)+OFFSET(БД!$K:$K,CU$10+$CR6-1,0,1,1))>0,OFFSET(БД!$K:$K,CU$7+$CR6-1,0,1,1)+OFFSET(БД!$K:$K,CU$8+$CR6-1,0,1,1)+OFFSET(БД!$K:$K,CU$9+$CR6-1,0,1,1)+OFFSET(БД!$K:$K,CU$10+$CR6-1,0,1,1),NA()) ->  | CA6: =IF((OFFSET(БД!$K:$K,CV$7+$CR6-1,0,1,1)+OFFSET(БД!$K:$K,CV$8+$CR6-1,0,1,1)+OFFSET(БД!$K:$K,CV$9+$CR6-1,0,1,1)+OFFSET(БД!$K:$K,CV$10+$CR6-1,0,1,1))>0,OFFSET(БД!$K:$K,CV$7+$CR6-1,0,1,1)+OFFSET(БД!$K:$K,CV$8+$CR6-1,0,1,1)+OFFSET(БД!$K:$K,CV$9+$CR6-1,0,1,1)+OFFSET(БД!$K:$K,CV$10+$CR6-1,0,1,1),NA()) ->  | CB6: =IF((OFFSET(БД!$K:$K,CW$7+$CR6-1,0,1,1)+OFFSET(БД!$K:$K,CW$8+$CR6-1,0,1,1)+OFFSET(БД!$K:$K,CW$9+$CR6-1,0,1,1)+OFFSET(БД!$K:$K,CW$10+$CR6-1,0,1,1))>0,OFFSET(БД!$K:$K,CW$7+$CR6-1,0,1,1)+OFFSET(БД!$K:$K,CW$8+$CR6-1,0,1,1)+OFFSET(БД!$K:$K,CW$9+$CR6-1,0,1,1)+OFFSET(БД!$K:$K,CW$10+$CR6-1,0,1,1),NA()) ->  | CC6: =IF((OFFSET(БД!$K:$K,CX$7+$CR6-1,0,1,1)+OFFSET(БД!$K:$K,CX$8+$CR6-1,0,1,1)+OFFSET(БД!$K:$K,CX$9+$CR6-1,0,1,1)+OFFSET(БД!$K:$K,CX$10+$CR6-1,0,1,1))>0,OFFSET(БД!$K:$K,CX$7+$CR6-1,0,1,1)+OFFSET(БД!$K:$K,CX$8+$CR6-1,0,1,1)+OFFSET(БД!$K:$K,CX$9+$CR6-1,0,1,1)+OFFSET(БД!$K:$K,CX$10+$CR6-1,0,1,1),NA()) ->  | CD6: =IF((OFFSET(БД!$K:$K,CY$7+$CR6-1,0,1,1)+OFFSET(БД!$K:$K,CY$8+$CR6-1,0,1,1)+OFFSET(БД!$K:$K,CY$9+$CR6-1,0,1,1)+OFFSET(БД!$K:$K,CY$10+$CR6-1,0,1,1))>0,OFFSET(БД!$K:$K,CY$7+$CR6-1,0,1,1)+OFFSET(БД!$K:$K,CY$8+$CR6-1,0,1,1)+OFFSET(БД!$K:$K,CY$9+$CR6-1,0,1,1)+OFFSET(БД!$K:$K,CY$10+$CR6-1,0,1,1),NA()) ->  | CE6: =IF((OFFSET(БД!$K:$K,CZ$7+$CR6-1,0,1,1)+OFFSET(БД!$K:$K,CZ$8+$CR6-1,0,1,1)+OFFSET(БД!$K:$K,CZ$9+$CR6-1,0,1,1)+OFFSET(БД!$K:$K,CZ$10+$CR6-1,0,1,1))>0,OFFSET(БД!$K:$K,CZ$7+$CR6-1,0,1,1)+OFFSET(БД!$K:$K,CZ$8+$CR6-1,0,1,1)+OFFSET(БД!$K:$K,CZ$9+$CR6-1,0,1,1)+OFFSET(БД!$K:$K,CZ$10+$CR6-1,0,1,1),NA()) ->  | CF6: =IF((OFFSET(БД!$K:$K,DA$7+$CR6-1,0,1,1)+OFFSET(БД!$K:$K,DA$8+$CR6-1,0,1,1)+OFFSET(БД!$K:$K,DA$9+$CR6-1,0,1,1)+OFFSET(БД!$K:$K,DA$10+$CR6-1,0,1,1))>0,OFFSET(БД!$K:$K,DA$7+$CR6-1,0,1,1)+OFFSET(БД!$K:$K,DA$8+$CR6-1,0,1,1)+OFFSET(БД!$K:$K,DA$9+$CR6-1,0,1,1)+OFFSET(БД!$K:$K,DA$10+$CR6-1,0,1,1),NA()) ->  | CG6: =IF((OFFSET(БД!$K:$K,DB$7+$CR6-1,0,1,1)+OFFSET(БД!$K:$K,DB$8+$CR6-1,0,1,1)+OFFSET(БД!$K:$K,DB$9+$CR6-1,0,1,1)+OFFSET(БД!$K:$K,DB$10+$CR6-1,0,1,1))>0,OFFSET(БД!$K:$K,DB$7+$CR6-1,0,1,1)+OFFSET(БД!$K:$K,DB$8+$CR6-1,0,1,1)+OFFSET(БД!$K:$K,DB$9+$CR6-1,0,1,1)+OFFSET(БД!$K:$K,DB$10+$CR6-1,0,1,1),NA()) ->  | CH6: =IF((OFFSET(БД!$K:$K,DC$7+$CR6-1,0,1,1)+OFFSET(БД!$K:$K,DC$8+$CR6-1,0,1,1)+OFFSET(БД!$K:$K,DC$9+$CR6-1,0,1,1)+OFFSET(БД!$K:$K,DC$10+$CR6-1,0,1,1))>0,OFFSET(БД!$K:$K,DC$7+$CR6-1,0,1,1)+OFFSET(БД!$K:$K,DC$8+$CR6-1,0,1,1)+OFFSET(БД!$K:$K,DC$9+$CR6-1,0,1,1)+OFFSET(БД!$K:$K,DC$10+$CR6-1,0,1,1),NA()) ->  | CI6: =IF((OFFSET(БД!$K:$K,DD$7+$CR6-1,0,1,1)+OFFSET(БД!$K:$K,DD$8+$CR6-1,0,1,1)+OFFSET(БД!$K:$K,DD$9+$CR6-1,0,1,1)+OFFSET(БД!$K:$K,DD$10+$CR6-1,0,1,1))>0,OFFSET(БД!$K:$K,DD$7+$CR6-1,0,1,1)+OFFSET(БД!$K:$K,DD$8+$CR6-1,0,1,1)+OFFSET(БД!$K:$K,DD$9+$CR6-1,0,1,1)+OFFSET(БД!$K:$K,DD$10+$CR6-1,0,1,1),NA()) ->  | CJ6: =IF(ABS(OFFSET($BW6,,$CJ$1,1,1))>=1000,ROUND(OFFSET($BW6,,$CJ$1,1,1)/1000,1)&"т",OFFSET($BW6,,$CJ$1,1,1)) ->  | CR6: 3 | CS6: 3 | CT6: 7 | CU6: 11 | CV6: 15 | CW6: 19 | CX6: 23 | CY6: 27 | CZ6: 31 | DA6: 35 | DB6: 39 | DC6: 43 | DD6: 47
BW7: Выручка | BX7: =IF((OFFSET(БД!$K:$K,CS$7+$CR7-1,0,1,1)+OFFSET(БД!$K:$K,CS$8+$CR7-1,0,1,1)+OFFSET(БД!$K:$K,CS$9+$CR7-1,0,1,1)+OFFSET(БД!$K:$K,CS$10+$CR7-1,0,1,1))>0,OFFSET(БД!$K:$K,CS$7+$CR7-1,0,1,1)+OFFSET(БД!$K:$K,CS$8+$CR7-1,0,1,1)+OFFSET(БД!$K:$K,CS$9+$CR7-1,0,1,1)+OFFSET(БД!$K:$K,CS$10+$CR7-1,0,1,1),NA()) ->  | BY7: =IF((OFFSET(БД!$K:$K,CT$7+$CR7-1,0,1,1)+OFFSET(БД!$K:$K,CT$8+$CR7-1,0,1,1)+OFFSET(БД!$K:$K,CT$9+$CR7-1,0,1,1)+OFFSET(БД!$K:$K,CT$10+$CR7-1,0,1,1))>0,OFFSET(БД!$K:$K,CT$7+$CR7-1,0,1,1)+OFFSET(БД!$K:$K,CT$8+$CR7-1,0,1,1)+OFFSET(БД!$K:$K,CT$9+$CR7-1,0,1,1)+OFFSET(БД!$K:$K,CT$10+$CR7-1,0,1,1),NA()) ->  | BZ7: =IF((OFFSET(БД!$K:$K,CU$7+$CR7-1,0,1,1)+OFFSET(БД!$K:$K,CU$8+$CR7-1,0,1,1)+OFFSET(БД!$K:$K,CU$9+$CR7-1,0,1,1)+OFFSET(БД!$K:$K,CU$10+$CR7-1,0,1,1))>0,OFFSET(БД!$K:$K,CU$7+$CR7-1,0,1,1)+OFFSET(БД!$K:$K,CU$8+$CR7-1,0,1,1)+OFFSET(БД!$K:$K,CU$9+$CR7-1,0,1,1)+OFFSET(БД!$K:$K,CU$10+$CR7-1,0,1,1),NA()) ->  | CA7: =IF((OFFSET(БД!$K:$K,CV$7+$CR7-1,0,1,1)+OFFSET(БД!$K:$K,CV$8+$CR7-1,0,1,1)+OFFSET(БД!$K:$K,CV$9+$CR7-1,0,1,1)+OFFSET(БД!$K:$K,CV$10+$CR7-1,0,1,1))>0,OFFSET(БД!$K:$K,CV$7+$CR7-1,0,1,1)+OFFSET(БД!$K:$K,CV$8+$CR7-1,0,1,1)+OFFSET(БД!$K:$K,CV$9+$CR7-1,0,1,1)+OFFSET(БД!$K:$K,CV$10+$CR7-1,0,1,1),NA()) ->  | CB7: =IF((OFFSET(БД!$K:$K,CW$7+$CR7-1,0,1,1)+OFFSET(БД!$K:$K,CW$8+$CR7-1,0,1,1)+OFFSET(БД!$K:$K,CW$9+$CR7-1,0,1,1)+OFFSET(БД!$K:$K,CW$10+$CR7-1,0,1,1))>0,OFFSET(БД!$K:$K,CW$7+$CR7-1,0,1,1)+OFFSET(БД!$K:$K,CW$8+$CR7-1,0,1,1)+OFFSET(БД!$K:$K,CW$9+$CR7-1,0,1,1)+OFFSET(БД!$K:$K,CW$10+$CR7-1,0,1,1),NA()) ->  | CC7: =IF((OFFSET(БД!$K:$K,CX$7+$CR7-1,0,1,1)+OFFSET(БД!$K:$K,CX$8+$CR7-1,0,1,1)+OFFSET(БД!$K:$K,CX$9+$CR7-1,0,1,1)+OFFSET(БД!$K:$K,CX$10+$CR7-1,0,1,1))>0,OFFSET(БД!$K:$K,CX$7+$CR7-1,0,1,1)+OFFSET(БД!$K:$K,CX$8+$CR7-1,0,1,1)+OFFSET(БД!$K:$K,CX$9+$CR7-1,0,1,1)+OFFSET(БД!$K:$K,CX$10+$CR7-1,0,1,1),NA()) ->  | CD7: =IF((OFFSET(БД!$K:$K,CY$7+$CR7-1,0,1,1)+OFFSET(БД!$K:$K,CY$8+$CR7-1,0,1,1)+OFFSET(БД!$K:$K,CY$9+$CR7-1,0,1,1)+OFFSET(БД!$K:$K,CY$10+$CR7-1,0,1,1))>0,OFFSET(БД!$K:$K,CY$7+$CR7-1,0,1,1)+OFFSET(БД!$K:$K,CY$8+$CR7-1,0,1,1)+OFFSET(БД!$K:$K,CY$9+$CR7-1,0,1,1)+OFFSET(БД!$K:$K,CY$10+$CR7-1,0,1,1),NA()) ->  | CE7: =IF((OFFSET(БД!$K:$K,CZ$7+$CR7-1,0,1,1)+OFFSET(БД!$K:$K,CZ$8+$CR7-1,0,1,1)+OFFSET(БД!$K:$K,CZ$9+$CR7-1,0,1,1)+OFFSET(БД!$K:$K,CZ$10+$CR7-1,0,1,1))>0,OFFSET(БД!$K:$K,CZ$7+$CR7-1,0,1,1)+OFFSET(БД!$K:$K,CZ$8+$CR7-1,0,1,1)+OFFSET(БД!$K:$K,CZ$9+$CR7-1,0,1,1)+OFFSET(БД!$K:$K,CZ$10+$CR7-1,0,1,1),NA()) ->  | CF7: =IF((OFFSET(БД!$K:$K,DA$7+$CR7-1,0,1,1)+OFFSET(БД!$K:$K,DA$8+$CR7-1,0,1,1)+OFFSET(БД!$K:$K,DA$9+$CR7-1,0,1,1)+OFFSET(БД!$K:$K,DA$10+$CR7-1,0,1,1))>0,OFFSET(БД!$K:$K,DA$7+$CR7-1,0,1,1)+OFFSET(БД!$K:$K,DA$8+$CR7-1,0,1,1)+OFFSET(БД!$K:$K,DA$9+$CR7-1,0,1,1)+OFFSET(БД!$K:$K,DA$10+$CR7-1,0,1,1),NA()) ->  | CG7: =IF((OFFSET(БД!$K:$K,DB$7+$CR7-1,0,1,1)+OFFSET(БД!$K:$K,DB$8+$CR7-1,0,1,1)+OFFSET(БД!$K:$K,DB$9+$CR7-1,0,1,1)+OFFSET(БД!$K:$K,DB$10+$CR7-1,0,1,1))>0,OFFSET(БД!$K:$K,DB$7+$CR7-1,0,1,1)+OFFSET(БД!$K:$K,DB$8+$CR7-1,0,1,1)+OFFSET(БД!$K:$K,DB$9+$CR7-1,0,1,1)+OFFSET(БД!$K:$K,DB$10+$CR7-1,0,1,1),NA()) ->  | CH7: =IF((OFFSET(БД!$K:$K,DC$7+$CR7-1,0,1,1)+OFFSET(БД!$K:$K,DC$8+$CR7-1,0,1,1)+OFFSET(БД!$K:$K,DC$9+$CR7-1,0,1,1)+OFFSET(БД!$K:$K,DC$10+$CR7-1,0,1,1))>0,OFFSET(БД!$K:$K,DC$7+$CR7-1,0,1,1)+OFFSET(БД!$K:$K,DC$8+$CR7-1,0,1,1)+OFFSET(БД!$K:$K,DC$9+$CR7-1,0,1,1)+OFFSET(БД!$K:$K,DC$10+$CR7-1,0,1,1),NA()) ->  | CI7: =IF((OFFSET(БД!$K:$K,DD$7+$CR7-1,0,1,1)+OFFSET(БД!$K:$K,DD$8+$CR7-1,0,1,1)+OFFSET(БД!$K:$K,DD$9+$CR7-1,0,1,1)+OFFSET(БД!$K:$K,DD$10+$CR7-1,0,1,1))>0,OFFSET(БД!$K:$K,DD$7+$CR7-1,0,1,1)+OFFSET(БД!$K:$K,DD$8+$CR7-1,0,1,1)+OFFSET(БД!$K:$K,DD$9+$CR7-1,0,1,1)+OFFSET(БД!$K:$K,DD$10+$CR7-1,0,1,1),NA()) ->  | CJ7: =IF(ABS(OFFSET($BW7,,$CJ$1,1,1))>=1000,ROUND(OFFSET($BW7,,$CJ$1,1,1)/1000,1)&" т. р.",OFFSET($BW7,,$CJ$1,1,1)) ->  | CR7: 4 | CS7: =2+17*CS3+1 -> 3 | CT7: =2+17*CT3+1 -> 71 | CU7: 139 | CV7: 207 | CW7: 275 | CX7: 343 | CY7: 411 | CZ7: 479 | DA7: 547 | DB7: 615 | DC7: 683 | DD7: 751
BW8: Реклама | BX8: =IF((OFFSET(БД!$K:$K,CS$7+$CR8-1,0,1,1)+OFFSET(БД!$K:$K,CS$8+$CR8-1,0,1,1)+OFFSET(БД!$K:$K,CS$9+$CR8-1,0,1,1)+OFFSET(БД!$K:$K,CS$10+$CR8-1,0,1,1))>0,OFFSET(БД!$K:$K,CS$7+$CR8-1,0,1,1)+OFFSET(БД!$K:$K,CS$8+$CR8-1,0,1,1)+OFFSET(БД!$K:$K,CS$9+$CR8-1,0,1,1)+OFFSET(БД!$K:$K,CS$10+$CR8-1,0,1,1),NA()) ->  | BY8: =IF((OFFSET(БД!$K:$K,CT$7+$CR8-1,0,1,1)+OFFSET(БД!$K:$K,CT$8+$CR8-1,0,1,1)+OFFSET(БД!$K:$K,CT$9+$CR8-1,0,1,1)+OFFSET(БД!$K:$K,CT$10+$CR8-1,0,1,1))>0,OFFSET(БД!$K:$K,CT$7+$CR8-1,0,1,1)+OFFSET(БД!$K:$K,CT$8+$CR8-1,0,1,1)+OFFSET(БД!$K:$K,CT$9+$CR8-1,0,1,1)+OFFSET(БД!$K:$K,CT$10+$CR8-1,0,1,1),NA()) ->  | BZ8: =IF((OFFSET(БД!$K:$K,CU$7+$CR8-1,0,1,1)+OFFSET(БД!$K:$K,CU$8+$CR8-1,0,1,1)+OFFSET(БД!$K:$K,CU$9+$CR8-1,0,1,1)+OFFSET(БД!$K:$K,CU$10+$CR8-1,0,1,1))>0,OFFSET(БД!$K:$K,CU$7+$CR8-1,0,1,1)+OFFSET(БД!$K:$K,CU$8+$CR8-1,0,1,1)+OFFSET(БД!$K:$K,CU$9+$CR8-1,0,1,1)+OFFSET(БД!$K:$K,CU$10+$CR8-1,0,1,1),NA()) ->  | CA8: =IF((OFFSET(БД!$K:$K,CV$7+$CR8-1,0,1,1)+OFFSET(БД!$K:$K,CV$8+$CR8-1,0,1,1)+OFFSET(БД!$K:$K,CV$9+$CR8-1,0,1,1)+OFFSET(БД!$K:$K,CV$10+$CR8-1,0,1,1))>0,OFFSET(БД!$K:$K,CV$7+$CR8-1,0,1,1)+OFFSET(БД!$K:$K,CV$8+$CR8-1,0,1,1)+OFFSET(БД!$K:$K,CV$9+$CR8-1,0,1,1)+OFFSET(БД!$K:$K,CV$10+$CR8-1,0,1,1),NA()) ->  | CB8: =IF((OFFSET(БД!$K:$K,CW$7+$CR8-1,0,1,1)+OFFSET(БД!$K:$K,CW$8+$CR8-1,0,1,1)+OFFSET(БД!$K:$K,CW$9+$CR8-1,0,1,1)+OFFSET(БД!$K:$K,CW$10+$CR8-1,0,1,1))>0,OFFSET(БД!$K:$K,CW$7+$CR8-1,0,1,1)+OFFSET(БД!$K:$K,CW$8+$CR8-1,0,1,1)+OFFSET(БД!$K:$K,CW$9+$CR8-1,0,1,1)+OFFSET(БД!$K:$K,CW$10+$CR8-1,0,1,1),NA()) ->  | CC8: =IF((OFFSET(БД!$K:$K,CX$7+$CR8-1,0,1,1)+OFFSET(БД!$K:$K,CX$8+$CR8-1,0,1,1)+OFFSET(БД!$K:$K,CX$9+$CR8-1,0,1,1)+OFFSET(БД!$K:$K,CX$10+$CR8-1,0,1,1))>0,OFFSET(БД!$K:$K,CX$7+$CR8-1,0,1,1)+OFFSET(БД!$K:$K,CX$8+$CR8-1,0,1,1)+OFFSET(БД!$K:$K,CX$9+$CR8-1,0,1,1)+OFFSET(БД!$K:$K,CX$10+$CR8-1,0,1,1),NA()) ->  | CD8: =IF((OFFSET(БД!$K:$K,CY$7+$CR8-1,0,1,1)+OFFSET(БД!$K:$K,CY$8+$CR8-1,0,1,1)+OFFSET(БД!$K:$K,CY$9+$CR8-1,0,1,1)+OFFSET(БД!$K:$K,CY$10+$CR8-1,0,1,1))>0,OFFSET(БД!$K:$K,CY$7+$CR8-1,0,1,1)+OFFSET(БД!$K:$K,CY$8+$CR8-1,0,1,1)+OFFSET(БД!$K:$K,CY$9+$CR8-1,0,1,1)+OFFSET(БД!$K:$K,CY$10+$CR8-1,0,1,1),NA()) ->  | CE8: =IF((OFFSET(БД!$K:$K,CZ$7+$CR8-1,0,1,1)+OFFSET(БД!$K:$K,CZ$8+$CR8-1,0,1,1)+OFFSET(БД!$K:$K,CZ$9+$CR8-1,0,1,1)+OFFSET(БД!$K:$K,CZ$10+$CR8-1,0,1,1))>0,OFFSET(БД!$K:$K,CZ$7+$CR8-1,0,1,1)+OFFSET(БД!$K:$K,CZ$8+$CR8-1,0,1,1)+OFFSET(БД!$K:$K,CZ$9+$CR8-1,0,1,1)+OFFSET(БД!$K:$K,CZ$10+$CR8-1,0,1,1),NA()) ->  | CF8: =IF((OFFSET(БД!$K:$K,DA$7+$CR8-1,0,1,1)+OFFSET(БД!$K:$K,DA$8+$CR8-1,0,1,1)+OFFSET(БД!$K:$K,DA$9+$CR8-1,0,1,1)+OFFSET(БД!$K:$K,DA$10+$CR8-1,0,1,1))>0,OFFSET(БД!$K:$K,DA$7+$CR8-1,0,1,1)+OFFSET(БД!$K:$K,DA$8+$CR8-1,0,1,1)+OFFSET(БД!$K:$K,DA$9+$CR8-1,0,1,1)+OFFSET(БД!$K:$K,DA$10+$CR8-1,0,1,1),NA()) ->  | CG8: =IF((OFFSET(БД!$K:$K,DB$7+$CR8-1,0,1,1)+OFFSET(БД!$K:$K,DB$8+$CR8-1,0,1,1)+OFFSET(БД!$K:$K,DB$9+$CR8-1,0,1,1)+OFFSET(БД!$K:$K,DB$10+$CR8-1,0,1,1))>0,OFFSET(БД!$K:$K,DB$7+$CR8-1,0,1,1)+OFFSET(БД!$K:$K,DB$8+$CR8-1,0,1,1)+OFFSET(БД!$K:$K,DB$9+$CR8-1,0,1,1)+OFFSET(БД!$K:$K,DB$10+$CR8-1,0,1,1),NA()) ->  | CH8: =IF((OFFSET(БД!$K:$K,DC$7+$CR8-1,0,1,1)+OFFSET(БД!$K:$K,DC$8+$CR8-1,0,1,1)+OFFSET(БД!$K:$K,DC$9+$CR8-1,0,1,1)+OFFSET(БД!$K:$K,DC$10+$CR8-1,0,1,1))>0,OFFSET(БД!$K:$K,DC$7+$CR8-1,0,1,1)+OFFSET(БД!$K:$K,DC$8+$CR8-1,0,1,1)+OFFSET(БД!$K:$K,DC$9+$CR8-1,0,1,1)+OFFSET(БД!$K:$K,DC$10+$CR8-1,0,1,1),NA()) ->  | CI8: =IF((OFFSET(БД!$K:$K,DD$7+$CR8-1,0,1,1)+OFFSET(БД!$K:$K,DD$8+$CR8-1,0,1,1)+OFFSET(БД!$K:$K,DD$9+$CR8-1,0,1,1)+OFFSET(БД!$K:$K,DD$10+$CR8-1,0,1,1))>0,OFFSET(БД!$K:$K,DD$7+$CR8-1,0,1,1)+OFFSET(БД!$K:$K,DD$8+$CR8-1,0,1,1)+OFFSET(БД!$K:$K,DD$9+$CR8-1,0,1,1)+OFFSET(БД!$K:$K,DD$10+$CR8-1,0,1,1),NA()) ->  | CJ8: =IF(ABS(OFFSET($BW8,,$CJ$1,1,1))>=1000,ROUND(OFFSET($BW8,,$CJ$1,1,1)/1000,1)&" т. р.",OFFSET($BW8,,$CJ$1,1,1)) ->  | CR8: 5 | CS8: =2+17*CS4+1 -> 20 | CT8: 88 | CU8: 156 | CV8: 224 | CW8: 292 | CX8: 360 | CY8: 428 | CZ8: 496 | DA8: 564 | DB8: 632 | DC8: 700 | DD8: 768
BW9: Прочие затраты | BX9: =IF(SUM(OFFSET(БД!$N:$N,,BX$1))>0,SUM(OFFSET(БД!$N:$N,,BX$1)),NA()) ->  | BY9: =IF(SUM(OFFSET(БД!$N:$N,,BY$1))>0,SUM(OFFSET(БД!$N:$N,,BY$1)),NA()) ->  | BZ9: =IF(SUM(OFFSET(БД!$N:$N,,BZ$1))>0,SUM(OFFSET(БД!$N:$N,,BZ$1)),NA()) ->  | CA9: =IF(SUM(OFFSET(БД!$N:$N,,CA$1))>0,SUM(OFFSET(БД!$N:$N,,CA$1)),NA()) ->  | CB9: =IF(SUM(OFFSET(БД!$N:$N,,CB$1))>0,SUM(OFFSET(БД!$N:$N,,CB$1)),NA()) ->  | CC9: =IF(SUM(OFFSET(БД!$N:$N,,CC$1))>0,SUM(OFFSET(БД!$N:$N,,CC$1)),NA()) ->  | CD9: =IF(SUM(OFFSET(БД!$N:$N,,CD$1))>0,SUM(OFFSET(БД!$N:$N,,CD$1)),NA()) ->  | CE9: =IF(SUM(OFFSET(БД!$N:$N,,CE$1))>0,SUM(OFFSET(БД!$N:$N,,CE$1)),NA()) ->  | CF9: =IF(SUM(OFFSET(БД!$N:$N,,CF$1))>0,SUM(OFFSET(БД!$N:$N,,CF$1)),NA()) ->  | CG9: =IF(SUM(OFFSET(БД!$N:$N,,CG$1))>0,SUM(OFFSET(БД!$N:$N,,CG$1)),NA()) ->  | CH9: =IF(SUM(OFFSET(БД!$N:$N,,CH$1))>0,SUM(OFFSET(БД!$N:$N,,CH$1)),NA()) ->  | CI9: =IF(SUM(OFFSET(БД!$N:$N,,CI$1))>0,SUM(OFFSET(БД!$N:$N,,CI$1)),NA()) ->  | CJ9: =IF(ABS(OFFSET($BW9,,$CJ$1,1,1))>=1000,ROUND(OFFSET($BW9,,$CJ$1,1,1)/1000,1)&" т. р.",OFFSET($BW9,,$CJ$1,1,1)) ->  | CS9: 37 | CT9: 105 | CU9: 173 | CV9: 241 | CW9: 309 | CX9: 377 | CY9: 445 | CZ9: 513 | DA9: 581 | DB9: 649 | DC9: 717 | DD9: 785
BW10: CVкл-заявки | BX10: =IF(BX3>0,BX4/BX3,NA()) ->  | BY10: =IF(BY3>0,BY4/BY3,NA()) ->  | CJ10: =OFFSET($BW10,,$CJ$1,1,1) ->  | CS10: 54 | CT10: 122 | CU10: 190 | CV10: 258 | CW10: 326 | CX10: 394 | CY10: 462 | CZ10: 530 | DA10: 598 | DB10: 666 | DC10: 734 | DD10: 802
BW11: CVзаяв-встр | BX11: =IF(BX4>0,BX5/BX4,NA()) ->  | BY11: =IF(BY4>0,BY5/BY4,NA()) ->  | CJ11: =OFFSET($BW11,,$CJ$1,1,1) -> 
BW12: CVвстр-пр | BX12: =IF(BX5>0,BX6/BX5,NA()) ->  | BY12: =IF(BY5>0,BY6/BY5,NA()) ->  | CJ12: =OFFSET($BW12,,$CJ$1,1,1) -> 
BW13: Цена клика | BX13: =IF(BX3>0,BX8/BX3,NA()) ->  | CJ13: =IF(ABS(OFFSET($BW13,,$CJ$1,1,1))>=1000,ROUND(OFFSET($BW13,,$CJ$1,1,1)/1000,1)&" т. р.",OFFSET($BW13,,$CJ$1,1,1)) -> 
BW14: Цена заявки | BX14: =IF(BX4>0,BX8/BX4,NA()) ->  | CJ14: =IF(ABS(OFFSET($BW14,,$CJ$1,1,1))>=1000,ROUND(OFFSET($BW14,,$CJ$1,1,1)/1000,1)&" т. р.",OFFSET($BW14,,$CJ$1,1,1)) -> 
BW15: Цена клиента | BX15: =IF(BX5>0,BX8/BX5,NA()) ->  | CJ15: =IF(ABS(OFFSET($BW15,,$CJ$1,1,1))>=1000,ROUND(OFFSET($BW15,,$CJ$1,1,1)/1000,1)&" т. р.",OFFSET($BW15,,$CJ$1,1,1)) -> 
BW16: Средн чек | BX16: =IF(BX6>0,BX7/BX6,NA()) ->  | CJ16: =IF(ABS(OFFSET($BW16,,$CJ$1,1,1))>=1000,ROUND(OFFSET($BW16,,$CJ$1,1,1)/1000,1)&" т. р.",OFFSET($BW16,,$CJ$1,1,1)) -> 
BW17: ROI | BX17: =IF(BX8>0,(BX7-BX8)/BX8,NA()) ->  | CJ17: =OFFSET($BW17,,$CJ$1,1,1) -> 
BW18: прибыль (-затраты) | BX18: =IF((BX7-BX8)<>0,BX7-BX8,NA()) ->  | CJ18: =IF(ABS(OFFSET($BW18,,$CJ$1,1,1))>=1000,ROUND(OFFSET($BW18,,$CJ$1,1,1)/1000,1)&" т. р.",OFFSET($BW18,,$CJ$1,1,1)) -> 
BW19: Чистая прибыль | BX19: =IF((BX18-IFERROR(BX9,0))<>0,BX18-IFERROR(BX9,0),NA()) ->  | BY19: =IF((BY18-IFERROR(BY9,0))<>0,BY18-IFERROR(BY9,0),NA()) ->  | CJ19: =IF(ABS(OFFSET($BW19,,$CJ$1,1,1))>=1000,ROUND(OFFSET($BW19,,$CJ$1,1,1)/1000,1)&" т. р.",OFFSET($BW19,,$CJ$1,1,1)) -> 
BX20: 1 | BY20: 0 | BZ20: 1 | CA20: 0 | CB20: 1 | CC20: 0 | CD20: 1 | CE20: 0 | CF20: 1 | CG20: 0 | CH20: 1 | CI20: 0
BX21: янв | BY21: фев | BZ21: мар | CA21: апр | CB21: май | CC21: июн | CD21: июл | CE21: авг | CF21: сен | CG21: окт | CH21: ноя | CI21: дек
C22: Значение | E22: =IF(ABS(BX19)>=1000,ROUND(BX19/1000,1)&"т. р.",BX19) ->  | T22: Значение | V22: =BX10 ->  | AK22: Значение | AM22: =IF(ABS(BX3)>=1000,ROUND(BX3/1000,1)&"k",BX3) ->  | BX22: 1 | BY22: 2 | BZ22: 3 | CA22: 4 | CB22: 5 | CC22: 6 | CD22: 7 | CE22: 8 | CF22: 9 | CG22: 10 | CH22: 11 | CI22: 12
C23: Динамика | E23: х | F23: =IFERROR((BY19-BX19)/BX19,0) -> 0 | G23: 0 | H23: 0 | I23: 0 | J23: 0 | K23: 0 | L23: 0 | M23: 0 | N23: 0 | O23: 0 | P23: 0 | T23: Динамика | V23: х | W23: =IFERROR((BY10-BX10)/BX10,0) -> 0 | X23: =IFERROR((BZ10-BY10)/BY10,0) -> 0 | Y23: 0 | Z23: 0 | AA23: 0 | AB23: 0 | AC23: 0 | AD23: 0 | AE23: 0 | AF23: 0 | AG23: 0 | AK23: Динамика | AM23: х | AN23: =IFERROR((BY3-BX3)/BX3,0) -> 0 | AO23: 0 | AP23: 0 | AQ23: 0 | AR23: 0 | AS23: 0 | AT23: 0 | AU23: 0 | AV23: 0 | AW23: 0 | AX23: 0 | BW23: Клики | BX23: =IF(BX$22=$CJ$1,BX3,NA()) -> 
BW24: Заявки | BX24: =IF(BX$22=$CJ$1,BX4,NA()) -> 
BW25: Встречи | BX25: =IF(BX$22=$CJ$1,BX5,NA()) -> 
BW26: Продажи | BX26: =IF(BX$22=$CJ$1,BX6,NA()) -> 
BW27: Выручка | BX27: =IF(BX$22=$CJ$1,BX7,NA()) -> 
BW28: Реклама | BX28: =IF(BX$22=$CJ$1,BX40,NA()) ->  | DD28: TRUE
BW29: Прочие затраты | BX29: =IF(BX$22=$CJ$1,BX41,NA()) ->  | DD29: TRUE
BW30: CVкл-заявки | BX30: =IF(BX$22=$CJ$1,BX10,NA()) -> 
BW31: CVзаяв-встр | BX31: =IF(BX$22=$CJ$1,BX11,NA()) -> 
BW32: CVвстр-пр | BX32: =IF(BX$22=$CJ$1,BX12,NA()) -> 
C33: Значение | E33: =IF(ABS(BX16)>=1000,ROUND(BX16/1000,1)&"т. р.",BX16) ->  | T33: Значение | V33: =BX11 ->  | AK33: Значение | AM33: =IF(ABS(BX4)>=1000,ROUND(BX4/1000,1)&"k",BX4) ->  | BW33: Цена клика | BX33: =IF(BX$22=$CJ$1,BX13,NA()) -> 
C34: Динамика | E34: х | F34: =IFERROR((BY16-BX16)/BX16,0) -> 0 | G34: 0 | H34: 0 | I34: 0 | J34: 0 | K34: 0 | L34: 0 | M34: 0 | N34: 0 | O34: 0 | P34: 0 | T34: Динамика | V34: х | W34: =IFERROR((BY11-BX11)/BX11,0) -> 0 | X34: 0 | Y34: 0 | Z34: 0 | AA34: 0 | AB34: 0 | AC34: 0 | AD34: 0 | AE34: 0 | AF34: 0 | AG34: 0 | AK34: Динамика | AM34: х | AN34: =IFERROR((BY4-BX4)/BX4,0) -> 0 | AO34: 0 | AP34: 0 | AQ34: 0 | AR34: 0 | AS34: 0 | AT34: 0 | AU34: 0 | AV34: 0 | AW34: 0 | AX34: 0 | BW34: Цена заявки | BX34: =IF(BX$22=$CJ$1,BX14,NA()) -> 
BW35: Цена клиента | BX35: =IF(BX$22=$CJ$1,BX15,NA()) -> 
BW36: Средн чек | BX36: =IF(BX$22=$CJ$1,BX16,NA()) -> 
BW37: ROI | BX37: =IF(BX$22=$CJ$1,BX17,NA()) -> 
BW38: прибыль (-затраты) | BX38: =IF(BX$22=$CJ$1,BX18,NA()) -> 
BW39: Чистая прибыль | BX39: =IF(BX$22=$CJ$1,BX19,NA()) -> 
BW40: Реклама | BX40: =IF($DD$28,BX8,NA()) -> 
BW41: Прочие затраты | BX41: =IF($DD$29,BX9,NA()) -> 
C44: Значение | E44: =IF(ABS(BX7)>=1000,ROUND(BX7/1000,1)&"т. р.",BX7) ->  | T44: Значение | V44: =IF(ABS(BX12)>=1000,ROUND(BX12/1000,1)&"k",BX12) ->  | AK44: Значение | AM44: =IF(ABS(BX5)>=1000,ROUND(BX5/1000,1)&"k",BX5) -> 
C45: Динамика | E45: х | F45: =IFERROR((BY7-BX7)/BX7,0) -> 0 | G45: 0 | H45: 0 | I45: 0 | J45: 0 | K45: 0 | L45: 0 | M45: 0 | N45: 0 | O45: 0 | P45: 0 | T45: Динамика | V45: х | W45: =IFERROR((BY12-BX12)/BX12,0) -> 0 | X45: 0 | Y45: 0 | Z45: 0 | AA45: 0 | AB45: 0 | AC45: 0 | AD45: 0 | AE45: 0 | AF45: 0 | AG45: 0 | AK45: Динамика | AM45: х | AN45: =IFERROR((BY5-BX5)/BX5,0) -> 0 | AO45: 0 | AP45: 0 | AQ45: 0 | AR45: 0 | AS45: 0 | AT45: 0 | AU45: 0 | AV45: 0 | AW45: 0 | AX45: 0
C55: Реклама | E55: =IF(ABS(BX8)>=1000,ROUND(BX8/1000,1)&"т. р.",BX8) ->  | T55: Значение | V55: =BX17 ->  | AK55: Значение | AM55: =IF(ABS(BX6)>=1000,ROUND(BX6/1000,1)&"k",BX6) -> 
C56: Динамика | E56: х | F56: =IFERROR((BY8-BX8)/BX8,0) -> 0 | G56: 0 | H56: 0 | I56: 0 | J56: 0 | K56: 0 | L56: 0 | M56: 0 | N56: 0 | O56: 0 | P56: 0 | T56: Динамика | V56: х | W56: =IFERROR((BY17-BX17)/BX17,0) -> 0 | X56: 0 | Y56: 0 | Z56: 0 | AA56: 0 | AB56: 0 | AC56: 0 | AD56: 0 | AE56: 0 | AF56: 0 | AG56: 0 | AK56: Динамика | AM56: х | AN56: =IFERROR((BY6-BX6)/BX6,0) -> 0 | AO56: 0 | AP56: 0 | AQ56: 0 | AR56: 0 | AS56: 0 | AT56: 0 | AU56: 0 | AV56: 0 | AW56: 0 | AX56: 0
B57: Дп. Затр. | E57: =IF(ABS(BX9)>=1000,ROUND(BX9/1000,1)&"т. р.",BX9) -> 
C58: Динамика | E58: х | F58: =IFERROR((BY9-BX9)/BX9,0) -> 0 | G58: 0 | H58: 0 | I58: 0 | J58: 0 | K58: 0 | L58: 0 | M58: 0 | N58: 0 | O58: 0 | P58: 0

Sheet Прогнозирование
A1: 1 | N1: Выберите месяц: | EO1: 2
A2: =Статистика!$CJ$1 -> 1
F3: Показатель | G3: Янв | I3: Фев | K3: Мар | L3: Апр | N3: Май | P3: Июн | R3: Июл | U3: Авг | V3: Сен | Y3: Окт | AA3: Ноя | AC3: Дек | AL3: 1 | AM3: 6
F4: Факт | G4: =G44 -> 0 | I4: =H44 -> 0 | K4: =I44 -> 0 | L4: =J44 -> 0 | N4: =K44 -> 0 | P4: =L44 -> 0 | R4: =M44 -> 0 | U4: =N44 -> 0 | V4: =O44 -> 0 | Y4: =P44 -> 0 | AA4: =Q44 -> 0 | AC4: =R44 -> 0 | AE4: 178 | AF4: Прозрачно | AG4: 178 | AI4: 180 | AL4: =MAX(AL5:AL7) -> 3 | AO4: % плана | AP4: Комментарий
F5: Цель | AE5: =MAX(MIN(177,180*AG9),0) ->  | AF5: Красный | AG5: =180*AH5/100 -> 117 | AH5: 65 | AI5: =MIN(180*(AK8)-1,178) ->  | AL5: =IF(AG9>=AO6,3,0) -> 3 | AM5: 3 | AN5: Зеленый | AP5: Ваших темпов хватает, скорее всего вы достигните вашей цели
AE6: 0 | AF6: Желтый | AG6: =180*AH6/100-AG5 -> 45 | AH6: 90 | AI6: 2 | AK6: 1 | AL6: =IF(AND(AL7=0,AG9<AO6),2,0) -> 0 | AM6: 2 | AN6: Желтый | AO6: 0.9 | AP6: Вам нужно ускориться для достижения вашей цели
F7: Фактические данные месяца | M7: Анализ "что будет если" | T7: Декомпозиция цели на основе воронки | AE7: =182-AE6-AE5 ->  | AF7: Зеленый | AG7: =182-AG5-AG6 -> 20 | AI7: =180-AI5-AI6 ->  | AK7: 0 | AL7: =IF(AG9<AO7,1,0) -> 0 | AM7: 1 | AN7: Красный | AO7: 0.65 | AP7: Ваших темпов пока недостаточно, чтобы дойти до цели
M8: =IF(A1=1,"Анализ, что если к текущему моменту были бы другие значения","Анализ что будет на конец месяца при следующих значениях") -> Анализ, что если к текущему моменту были бы другие значения | T8: Поиск способов достижения целевых показателей за счет изменения входных параметров | AF8: ="факт" -> факт | AG8: =OFFSET(F44,,A2) -> 0 | AH8: =ROUND(AI8/2,0) -> 0 | AI8: =OFFSET(F45,,A2) -> 0 | AK8: =AG8/AI8 ->  | AL8: =K17/AF13 ->  | AM8: =если -> 
F9: Показатели | G9: 1 нед | H9: 2 нед | I9: 3 нед | J9: 4 нед | K9: Итого | M9: Показатели | O9: ∆ | P9: Результат | AA9: Показатели | AC9: Значения | AG9: =IFERROR(AH9/AI8,"-") -> - | AH9: =E22 -> 0 | AI9: =IF(AH8>1000,ROUND(AH8/1000,2)&"т.р.",ROUND(AH8,2)&"р.") -> 0р. | AJ9: =IF(AI8>1000,ROUND(AI8/1000,2)&"т.р.",ROUND(AI8,2)&"р.") -> 0р.
A10: 0 | B10: =IFERROR(OFFSET(БД!$K:$K,(B$23-1)*17+3+$A10-1,0,1,1),0) -> 0 | C10: =IFERROR(OFFSET(БД!$K:$K,(C$23-1)*17+3+$A10-1,0,1,1),0) -> 0 | D10: =IFERROR(OFFSET(БД!$K:$K,(D$23-1)*17+3+$A10-1,0,1,1),0) -> 0 | F10: Клики | G10: =IF(OR($A$1=1,IFERROR(OFFSET(БД!$K:$K,(G$23-1)*17+3+$A$10-1,0,1,1),0)),IFERROR(OFFSET(БД!$K:$K,(G$23-1)*17+3+$A10-1,0,1,1),0),AVERAGE(B10,C10,D10)) -> 0 | H10: =IF(OR($A$1=1,IFERROR(OFFSET(БД!$K:$K,(H$23-1)*17+3+$A$10-1,0,1,1),0)),IFERROR(OFFSET(БД!$K:$K,(H$23-1)*17+3+$A10-1,0,1,1),0),AVERAGE(C10,D10,G10)) -> 0 | I10: =IF(OR($A$1=1,IFERROR(OFFSET(БД!$K:$K,(I$23-1)*17+3+$A$10-1,0,1,1),0)),IFERROR(OFFSET(БД!$K:$K,(I$23-1)*17+3+$A10-1,0,1,1),0),AVERAGE(D10,G10,H10)) -> 0 | J10: =IF(OR($A$1=1,IFERROR(OFFSET(БД!$K:$K,(J$23-1)*17+3+$A$10-1,0,1,1),0)),IFERROR(OFFSET(БД!$K:$K,(J$23-1)*17+3+$A10-1,0,1,1),0),AVERAGE(G10,H10,I10)) -> 0 | K10: =SUM(G10:J10) -> 0 | L10: 300 | M10: Клики | O10: =(L10-300)/500 -> 0 | Q10: =K10*(1+O10) -> 0 | AA10: Клики | AC10: =IF(AD10,AH15,K10) -> 0 | AD10: =IF($AM$3=AE10,1,0) -> 0 | AE10: 1 | AG10: 0 | AH10: =IF(AG8>1000,ROUND(AG8/1000,2)&"т.р.",ROUND(AG8,2)&"р.") -> 0р.
A11: 1 | B11: =IFERROR(OFFSET(БД!$K:$K,(B$23-1)*17+3+$A11-1,0,1,1),0) -> 0 | C11: =IFERROR(OFFSET(БД!$K:$K,(C$23-1)*17+3+$A11-1,0,1,1),0) -> 0 | D11: =IFERROR(OFFSET(БД!$K:$K,(D$23-1)*17+3+$A11-1,0,1,1),0) -> 0 | F11: Заявки | G11: =IF(OR($A$1=1,IFERROR(OFFSET(БД!$K:$K,(G$23-1)*17+3+$A$10-1,0,1,1),0)),IFERROR(OFFSET(БД!$K:$K,(G$23-1)*17+3+$A11-1,0,1,1),0),AVERAGE(B11,C11,D11)) -> 0 | H11: =IF(OR($A$1=1,IFERROR(OFFSET(БД!$K:$K,(H$23-1)*17+3+$A$10-1,0,1,1),0)),IFERROR(OFFSET(БД!$K:$K,(H$23-1)*17+3+$A11-1,0,1,1),0),AVERAGE(C11,D11,G11)) -> 0 | I11: =IF(OR($A$1=1,IFERROR(OFFSET(БД!$K:$K,(I$23-1)*17+3+$A$10-1,0,1,1),0)),IFERROR(OFFSET(БД!$K:$K,(I$23-1)*17+3+$A11-1,0,1,1),0),AVERAGE(D11,G11,H11)) -> 0 | J11: =IF(OR($A$1=1,IFERROR(OFFSET(БД!$K:$K,(J$23-1)*17+3+$A$10-1,0,1,1),0)),IFERROR(OFFSET(БД!$K:$K,(J$23-1)*17+3+$A11-1,0,1,1),0),AVERAGE(G11,H11,I11)) -> 0 | K11: =SUM(G11:J11) -> 0 | L11: 300 | M11: Заявки | O11: =(L11-300)/500 -> 0 | Q11: =K12*Q10*(1+O11) -> 0 | AA11: Заявки | AC11: =IF(AD11,K11/AL8,AC10*K12) -> 0 | AD11: =IF($AM$3=AE11,1,0) -> 0 | AE11: 2
F12: CVкл-заявки | G12: =IF(G10>0,G11/G10,0) -> 0 | H12: =IF(H10>0,H11/H10,0) -> 0 | I12: =IF(I10>0,I11/I10,0) -> 0 | J12: =IF(J10>0,J11/J10,0) -> 0 | K12: =IF(K10>0,K11/K10,0) -> 0 | M12: CVкл-заявки | Q12: =IF(Q10>0,Q11/Q10,0) -> 0 | AA12: CVкл-заявки | AC12: =IF(AC10>0,AC11/AC10,0) -> 0
A13: 2 | B13: =IFERROR(OFFSET(БД!$K:$K,(B$23-1)*17+3+$A13-1,0,1,1),0) -> 0 | C13: =IFERROR(OFFSET(БД!$K:$K,(C$23-1)*17+3+$A13-1,0,1,1),0) -> 0 | D13: =IFERROR(OFFSET(БД!$K:$K,(D$23-1)*17+3+$A13-1,0,1,1),0) -> 0 | F13: Встречи | G13: =IF(OR($A$1=1,IFERROR(OFFSET(БД!$K:$K,(G$23-1)*17+3+$A$10-1,0,1,1),0)),IFERROR(OFFSET(БД!$K:$K,(G$23-1)*17+3+$A13-1,0,1,1),0),AVERAGE(B13,C13,D13)) -> 0 | H13: =IF(OR($A$1=1,IFERROR(OFFSET(БД!$K:$K,(H$23-1)*17+3+$A$10-1,0,1,1),0)),IFERROR(OFFSET(БД!$K:$K,(H$23-1)*17+3+$A13-1,0,1,1),0),AVERAGE(C13,D13,G13)) -> 0 | I13: =IF(OR($A$1=1,IFERROR(OFFSET(БД!$K:$K,(I$23-1)*17+3+$A$10-1,0,1,1),0)),IFERROR(OFFSET(БД!$K:$K,(I$23-1)*17+3+$A13-1,0,1,1),0),AVERAGE(D13,G13,H13)) -> 0 | J13: =IF(OR($A$1=1,IFERROR(OFFSET(БД!$K:$K,(J$23-1)*17+3+$A$10-1,0,1,1),0)),IFERROR(OFFSET(БД!$K:$K,(J$23-1)*17+3+$A13-1,0,1,1),0),AVERAGE(G13,H13,I13)) -> 0 | K13: 0 | L13: 300 | M13: Встречи | O13: =(L13-300)/500 -> 0 | Q13: =K14*Q11*(1+O13) -> 0 | AA13: Встречи | AC13: =IF(AD13,K13/AL8,AC11*K14) -> 0 | AD13: =IF($AM$3=AE13,1,0) -> 0 | AE13: 3 | AF13: =AI8+K18+K19 -> 0
F14: CVзаяв-встр | G14: =IF(G11>0,G13/G11,0) -> 0 | H14: =IF(H11>0,H13/H11,0) -> 0 | I14: =IF(I11>0,I13/I11,0) -> 0 | J14: =IF(J11>0,J13/J11,0) -> 0 | K14: =IF(K11>0,K13/K11,0) -> 0 | M14: CVзаяв-встр | Q14: =IF(Q11>0,Q13/Q11,0) -> 0 | AA14: CVзаяв-встр | AC14: =IF(AC11>0,AC13/AC11,0) -> 0 | AG14: =K16*K14*K12 -> 0 | AH14: =AH15/K20 ->  | AI14: =AH14/AG14 -> 
A15: 3 | B15: =IFERROR(OFFSET(БД!$K:$K,(B$23-1)*17+3+$A15-1,0,1,1),0) -> 0 | C15: =IFERROR(OFFSET(БД!$K:$K,(C$23-1)*17+3+$A15-1,0,1,1),0) -> 0 | D15: =IFERROR(OFFSET(БД!$K:$K,(D$23-1)*17+3+$A15-1,0,1,1),0) -> 0 | F15: Продажи | G15: =IF(OR($A$1=1,IFERROR(OFFSET(БД!$K:$K,(G$23-1)*17+3+$A$10-1,0,1,1),0)),IFERROR(OFFSET(БД!$K:$K,(G$23-1)*17+3+$A15-1,0,1,1),0),AVERAGE(B15,C15,D15)) -> 0 | H15: =IF(OR($A$1=1,IFERROR(OFFSET(БД!$K:$K,(H$23-1)*17+3+$A$10-1,0,1,1),0)),IFERROR(OFFSET(БД!$K:$K,(H$23-1)*17+3+$A15-1,0,1,1),0),AVERAGE(C15,D15,G15)) -> 0 | I15: =IF(OR($A$1=1,IFERROR(OFFSET(БД!$K:$K,(I$23-1)*17+3+$A$10-1,0,1,1),0)),IFERROR(OFFSET(БД!$K:$K,(I$23-1)*17+3+$A15-1,0,1,1),0),AVERAGE(D15,G15,H15)) -> 0 | J15: =IF(OR($A$1=1,IFERROR(OFFSET(БД!$K:$K,(J$23-1)*17+3+$A$10-1,0,1,1),0)),IFERROR(OFFSET(БД!$K:$K,(J$23-1)*17+3+$A15-1,0,1,1),0),AVERAGE(G15,H15,I15)) -> 0 | K15: 0 | L15: 300 | M15: Продажи | O15: =(L15-300)/500 -> 0 | Q15: =Q13*K16*(1+O15) -> 0 | AA15: Продажи | AC15: =IF(AD15,K15/AL8,AC13*K16) -> 0 | AD15: =IF($AM$3=AE15,1,0) -> 0 | AE15: 4 | AG15: =K18/K10 ->  | AH15: =MAX((K19+AI8)/(K20*AG14-AG15),K10) -> 
F16: CVвстр-пр | G16: =IF(G13>0,G15/G13,0) -> 0 | H16: =IF(H13>0,H15/H13,0) -> 0 | I16: =IF(I13>0,I15/I13,0) -> 0 | J16: =IF(J13>0,J15/J13,0) -> 0 | K16: =IF(K13>0,K15/K13,0) -> 0 | M16: CVвстр-пр | Q16: =IF(Q13>0,Q15/Q13,0) -> 0 | AA16: CVвстр-пр | AC16: =IF(AC13>0,AC15/AC13,0) -> 0 | AG16: Продажи | AH16: =(AI8+AC18+AC19)/AC20 -> 
A17: 4 | B17: =IFERROR(OFFSET(БД!$K:$K,(B$23-1)*17+3+$A17-1,0,1,1),0) -> 0 | C17: =IFERROR(OFFSET(БД!$K:$K,(C$23-1)*17+3+$A17-1,0,1,1),0) -> 0 | D17: =IFERROR(OFFSET(БД!$K:$K,(D$23-1)*17+3+$A17-1,0,1,1),0) -> 0 | F17: Выручка | G17: =IF(OR($A$1=1,IFERROR(OFFSET(БД!$K:$K,(G$23-1)*17+3+$A$10-1,0,1,1),0)),IFERROR(OFFSET(БД!$K:$K,(G$23-1)*17+3+$A17-1,0,1,1),0),AVERAGE(B17,C17,D17)) -> 0 | H17: =IF(OR($A$1=1,IFERROR(OFFSET(БД!$K:$K,(H$23-1)*17+3+$A$10-1,0,1,1),0)),IFERROR(OFFSET(БД!$K:$K,(H$23-1)*17+3+$A17-1,0,1,1),0),AVERAGE(C17,D17,G17)) -> 0 | I17: =IF(OR($A$1=1,IFERROR(OFFSET(БД!$K:$K,(I$23-1)*17+3+$A$10-1,0,1,1),0)),IFERROR(OFFSET(БД!$K:$K,(I$23-1)*17+3+$A17-1,0,1,1),0),AVERAGE(D17,G17,H17)) -> 0 | J17: =IF(OR($A$1=1,IFERROR(OFFSET(БД!$K:$K,(J$23-1)*17+3+$A$10-1,0,1,1),0)),IFERROR(OFFSET(БД!$K:$K,(J$23-1)*17+3+$A17-1,0,1,1),0),AVERAGE(G17,H17,I17)) -> 0 | K17: 0 | L17: 300 | M17: Выручка | O17: =(L17-300)/500 -> 0 | Q17: =K17/K15*Q15*(1+O17) ->  | AA17: Выручка | AC17: =AC20*AC15 -> 0 | AH17: =AH16/AC16 -> 
A18: 5 | B18: =IFERROR(OFFSET(БД!$K:$K,(B$23-1)*17+3+$A18-1,0,1,1),0) -> 0 | C18: =IFERROR(OFFSET(БД!$K:$K,(C$23-1)*17+3+$A18-1,0,1,1),0) -> 0 | D18: =IFERROR(OFFSET(БД!$K:$K,(D$23-1)*17+3+$A18-1,0,1,1),0) -> 0 | F18: Реклама | G18: =IF(OR($A$1=1,IFERROR(OFFSET(БД!$K:$K,(G$23-1)*17+3+$A$10-1,0,1,1),0)),IFERROR(OFFSET(БД!$K:$K,(G$23-1)*17+3+$A18-1,0,1,1),0),AVERAGE(B18,C18,D18)) -> 0 | H18: =IF(OR($A$1=1,IFERROR(OFFSET(БД!$K:$K,(H$23-1)*17+3+$A$10-1,0,1,1),0)),IFERROR(OFFSET(БД!$K:$K,(H$23-1)*17+3+$A18-1,0,1,1),0),AVERAGE(C18,D18,G18)) -> 0 | I18: =IF(OR($A$1=1,IFERROR(OFFSET(БД!$K:$K,(I$23-1)*17+3+$A$10-1,0,1,1),0)),IFERROR(OFFSET(БД!$K:$K,(I$23-1)*17+3+$A18-1,0,1,1),0),AVERAGE(D18,G18,H18)) -> 0 | J18: =IF(OR($A$1=1,IFERROR(OFFSET(БД!$K:$K,(J$23-1)*17+3+$A$10-1,0,1,1),0)),IFERROR(OFFSET(БД!$K:$K,(J$23-1)*17+3+$A18-1,0,1,1),0),AVERAGE(G18,H18,I18)) -> 0 | K18: 0 | M18: Реклама | Q18: =K18/K10*Q10 ->  | V18: =IF(AI8=0,"введите цель",IFERROR(VLOOKUP(AL4,AM5:AP7,4,0),"введите цель")) -> введите цель | AA18: Реклама | AC18: =IFERROR(K18/K10*AC10,0) -> 0
A19: =IF(OR(0,IFERROR(OFFSET(БД!$K:$K,(G$23-1)*17+3+$A$10-1,0,1,1),0)),IFERROR(OFFSET(БД!$K:$K,(G$23-1)*17+3+$A17-1,0,1,1),0),AVERAGE(B17,C17,D17)) -> 0 | B19: =IF(OR(0,IFERROR(OFFSET(БД!$K:$K,(H$23-1)*17+3+$A$10-1,0,1,1),0)),IFERROR(OFFSET(БД!$K:$K,(H$23-1)*17+3+$A17-1,0,1,1),0),AVERAGE(C17,D17,A19)) -> 0 | C19: =IF(OR(0,IFERROR(OFFSET(БД!$K:$K,(I$23-1)*17+3+$A$10-1,0,1,1),0)),IFERROR(OFFSET(БД!$K:$K,(I$23-1)*17+3+$A17-1,0,1,1),0),AVERAGE(D17,A19,B19)) -> 0 | D19: =IF(OR(0,IFERROR(OFFSET(БД!$K:$K,(J$23-1)*17+3+$A$10-1,0,1,1),0)),IFERROR(OFFSET(БД!$K:$K,(J$23-1)*17+3+$A17-1,0,1,1),0),AVERAGE(A19,B19,C19)) -> 0 | E19: =SUM(A19:D19) -> 0 | F19: Прочие затраты | G19: =$K$19/4 -> 0 | H19: =$K$19/4 -> 0 | I19: 0 | J19: 0 | K19: =SUM(OFFSET(БД!$N:$N,,$A$2*2)) -> 0 | L19: 300 | M19: Прочие затраты | O19: =(L19-300)/500 -> 0 | Q19: =K19*(1+O19) -> 0 | AA19: Прочие затраты | AC19: =K19 -> 0
A20: =IF(OR(0,IFERROR(OFFSET(БД!$K:$K,(G$23-1)*17+3+$A$10-1,0,1,1),0)),IFERROR(OFFSET(БД!$K:$K,(G$23-1)*17+3+$A18-1,0,1,1),0),AVERAGE(B18,C18,D18)) -> 0 | B20: =IF(OR(0,IFERROR(OFFSET(БД!$K:$K,(H$23-1)*17+3+$A$10-1,0,1,1),0)),IFERROR(OFFSET(БД!$K:$K,(H$23-1)*17+3+$A18-1,0,1,1),0),AVERAGE(C18,D18,A20)) -> 0 | C20: =IF(OR(0,IFERROR(OFFSET(БД!$K:$K,(I$23-1)*17+3+$A$10-1,0,1,1),0)),IFERROR(OFFSET(БД!$K:$K,(I$23-1)*17+3+$A18-1,0,1,1),0),AVERAGE(D18,A20,B20)) -> 0 | D20: =IF(OR(0,IFERROR(OFFSET(БД!$K:$K,(J$23-1)*17+3+$A$10-1,0,1,1),0)),IFERROR(OFFSET(БД!$K:$K,(J$23-1)*17+3+$A18-1,0,1,1),0),AVERAGE(A20,B20,C20)) -> 0 | E20: =SUM(A20:D20) -> 0 | F20: Средн чек | G20: =IF(G15>0,G17/G15,0) -> 0 | H20: =IF(H15>0,H17/H15,0) -> 0 | I20: =IF(I15>0,I17/I15,0) -> 0 | J20: =IF(J15>0,J17/J15,0) -> 0 | K20: =IF(K15>0,K17/K15,0) -> 0 | M20: Средн чек | O20: =(L17-300)/500 -> 0 | Q20: =IF(Q15>0,Q17/Q15,0) -> 0 | AA20: Средн чек | AC20: =IF(AD20,K20/AL8,K20) -> 0 | AD20: =IF($AM$3=AE20,1,0) -> 0 | AE20: 5
E21: =SUM(OFFSET(БД!$N:$N,,$A$2*2)) -> 0 | F21: Чистая прибыль | G21: =G17-G18-G19 -> 0 | H21: =H17-H18-H19 -> 0 | I21: 0 | J21: 0 | K21: =K17-K18-K19 -> 0 | M21: Чистая прибыль | O21: =(Q21-K21)/K21 ->  | P21: =IF((Q21-K21)>0,"+","")&TEXT(ROUND(Q21-K21,0),"# ##") &"р." ->  | Q21: =Q17-Q18-Q19 ->  | AA21: Чистая прибыль | AC21: =AC17-AC18-AC19 -> 0
E22: =E19-E20-E21 -> 0 | G22: =SUM(G10:G11,G13,G15,G17:G18) -> 0 | H22: =SUM(H10:H11,H13,H15,H17:H18) -> 0 | I22: 0 | J22: 0
B23: =MAX(0,G23-3) -> 0 | C23: =MAX(0,H23-3) -> 0 | D23: =MAX(0,I23-3) -> 0 | G23: =($A$2-1)*4+1 -> 1 | H23: =($A$2-1)*4+2 -> 2 | I23: =($A$2-1)*4+3 -> 3 | J23: =($A$2-1)*4+4 -> 4
F24: Декомпозиция цели на основе свободных данных | T24: Другие продукты от автора воронки продаж 5.0
D26: =G26 -> 35000 | F26: Подберите цель, руб. | G26: 35000 | I26: =VALUE(D26) -> 35000 | T26: http://kurstargeting.ru | X26: ="Показы CTR рекламы "&I32*100&"%: " & IFERROR(INT(AB26),0) -> Показы CTR рекламы 6%: 5063 | AB26: =IF(I32=0,"нет",AB27/I32) -> 5063.657407
D27: 5000 | F27: Введите среднюю выручку с 1 продажи, руб. | G27: 5000 | I27: =VALUE(D27) -> 5000 | T27: http://kursdirect.ru | Y27: ="Клики конверсия сайта "&I29*100&"%: " & IFERROR(INT(AB27),0) -> Клики конверсия сайта 12%: 303 | AB27: =IF(I29=0,"нет",AB28/I29) -> 303.8194444
D28: 3000 | F28: Введите сколько чистыми с 1 продажи, руб. | G28: 3000 | I28: =VALUE(D28) -> 3000 | T28: Официальная группа воронки продаж | Z28: ="Звонки отклик-догов. "&I30*100&"%: " & IFERROR(INT(AB28),0) -> Звонки отклик-догов. 80%: 36 | AB28: =IF(I30=0,"нет",AB29/I30) -> 36.45833333
D29: 12 | F29: Введите конверсию сайта в звонок/заявку % | G29: 12 | I29: =VALUE(D29)/100 -> 0.12 | T29: http://vk.com/voronkaprodazh | Z29: ="Договоры догов.-прод. "&I31*100&"%: " & IFERROR(INT(AB29),0) -> Договоры догов.-прод. 40%: 29 | AB29: =IF(I31=0,"нет",AB30/I31) -> 29.16666667
D30: 80 | F30: Введите конверсию заявка-договор % | G30: 80 | I30: =VALUE(D30)/100 -> 0.8 | T30: Правила использования | AA30: ="Продажи: " & IFERROR(INT(AB30),0) -> Продажи: 11 | AB30: =IF(AB31=0,"нет",AB32/AB31) -> 11.66666667
D31: 40 | F31: Введите конверсию договор-продажа % | G31: 40 | I31: =VALUE(D31)/100 -> 0.4 | T31: Данный файл является авторским продуктом, все права принадлежат автору. Новиков Е.А. (vk.com/truejacko). Распространение и передача воронки продаж 5.0 третим лицам запрещена. В случае обнаружения случаев незаконного распространения - просьба обратиться к автору, написав на мейл info@kursdirect.ru | AA31: ="Ср. прибыль с 1 продажи: " & IFERROR(INT(AB31),0) -> Ср. прибыль с 1 продажи: 3000 | AB31: =I28 -> 3000
D32: 6 | F32: Введите CTR вашей рекламы % | G32: 6 | I32: =VALUE(D32)/100 -> 0.06 | AA32: ="Денег до вычета: " & IFERROR(INT(AB32),0) -> Денег до вычета: 35000 | AB32: =I26 -> 35000
D34: =G34 -> 10 | F34: Введите цену клика, руб. | G34: 10 | I34: =VALUE(D34) -> 10 | AA34: ="Затраты на рекламу: " & IFERROR(INT(AB34),0) -> Затраты на рекламу: 2126 | AB34: =IF(I34=0,"0",AB27*I34*I35) -> 2126.736111
D35: =G35 -> 70 | F35: % платного трафика | G35: 70 | I35: =VALUE(D35/100) -> 0.7 | AA35: ="Останется чистыми: " & IFERROR(INT(AB35),0) -> Останется чистыми: 32873 | AB35: =IF(AB32=0,"0",AB32-AB34) -> 32873.26389
F43: Показатель | G43: Янв | H43: Фев | I43: Мар | J43: Апр | K43: Май | L43: Июн | M43: Июл | N43: Авг | O43: Сен | P43: Окт | Q43: Ноя | R43: Дек
F44: Факт | G44: =IFERROR(Статистика!BX19,0) -> 0 | H44: =IFERROR(Статистика!BY19,0) -> 0 | I44: =IFERROR(Статистика!BZ19,0) -> 0 | J44: =IFERROR(Статистика!CA19,0) -> 0 | K44: =IFERROR(Статистика!CB19,0) -> 0 | L44: =IFERROR(Статистика!CC19,0) -> 0 | M44: =IFERROR(Статистика!CD19,0) -> 0 | N44: =IFERROR(Статистика!CE19,0) -> 0 | O44: =IFERROR(Статистика!CF19,0) -> 0 | P44: =IFERROR(Статистика!CG19,0) -> 0 | Q44: =IFERROR(Статистика!CH19,0) -> 0 | R44: =IFERROR(Статистика!CI19,0) -> 0
F45: Цель | G45: =G5 -> 0 | H45: =I5 -> 0 | I45: =K5 -> 0 | J45: =L5 -> 0 | K45: =N5 -> 0 | L45: =P5 -> 0 | M45: =R5 -> 0 | N45: =U5 -> 0 | O45: =V5 -> 0 | P45: =Y5 -> 0 | Q45: =AA5 -> 0 | R45: =AC5 -> 0

Sheet БД (hidden)
K1: add | O1: Январь | Q1: Февраль | S1: Март | U1: Апрель | W1: Май | Y1: Июнь | AA1: Июль | AC1: Август | AE1: Сентябрь | AG1: Октябрь | AI1: Ноябрь | AK1: Декабрь
A2: =VLOOKUP(INT((ROW()-1)/17)+1,Справочник!A:D,3,0) -> Январь неделя 1 (01-10 янв.) | B2: ='Учет данных'!B4 -> 0 | C2: ='Учет данных'!C4 -> 0 | D2: ='Учет данных'!D4 -> 0 | E2: ='Учет данных'!E4 -> 0 | F2: ='Учет данных'!F4 -> 0 | G2: ='Учет данных'!G4 -> 0 | H2: ='Учет данных'!H4 -> 0 | I2: ='Учет данных'!I4 -> 0 | J2: ='Учет данных'!J4 -> 0 | K2: ='Учет данных'!K4 -> 0 | N2: 1
A3: Клики | K3: =SUM(B3:J3) -> 0 | N3: 2
A4: Заявки | K4: =SUM(B4:J4) -> 0 | N4: 3
A5: Встречи | K5: 0 | N5: 4
A6: Продажи | K6: 0 | N6: 5
A7: Выручка | K7: 0 | N7: 6
A8: затраты | K8: =SUM(B8:J8) -> 0 | N8: 7
N9: 8
A10: CVкл-заявки | K10: =IF(K3>0,K4/K3,0) -> 0 | N10: 9
A11: CVзаяв-встр | K11: =IF(K4>0,K5/K4,0) -> 0 | N11: 10
A12: CVвстр-пр | K12: =IF(K5>0,K6/K5,0) -> 0 | N12: 11
A13: Цена клика | K13: =IF(K3>0,K$8/K3,0) -> 0 | N13: 12
A14: Цена заявки | K14: =IF(K4>0,K$8/K4,0) -> 0 | N14: 13
A15: Цена клиента | K15: =IF(K5>0,K$8/K5,0) -> 0 | N15: 14
A16: Средн чек | K16: =IF(K6>0,K7/K6,0) -> 0 | N16: 15
A17: ROI | K17: =IF(K8>0,(K7-K8)/K8,0) -> 0
A18: прибыль (-затраты) | K18: =K7-K8 -> 0
A19: =VLOOKUP(INT((ROW()-1)/17)+1,Справочник!A:D,3,0) -> Январь неделя 2 (11-17 янв.) | B19: =B$2 -> 0 | C19: =C$2 -> 0 | D19: 0 | E19: 0 | F19: 0 | G19: 0 | H19: 0 | I19: 0 | J19: 0 | K19: ='Учет данных'!K21 -> 0
A20: Клики | K20: =SUM(B20:J20) -> 0
A21: Заявки | K21: =SUM(B21:J21) -> 0
A22: Встречи | K22: 0
A23: Продажи | K23: 0
A24: Выручка | K24: 0
A25: затраты | K25: 0
A27: CVкл-заявки | K27: =IF(K20>0,K21/K20,0) -> 0
A28: CVзаяв-встр | K28: 0
A29: CVвстр-пр | K29: 0
A30: Цена клика | K30: =IF(K20>0,K$8/K20,0) -> 0
A31: Цена заявки | K31: 0
A32: Цена клиента | K32: 0
A33: Средн чек | K33: =IF(K23>0,K24/K23,0) -> 0
A34: ROI | K34: =IF(K25>0,(K24-K25)/K25,0) -> 0
A35: прибыль (-затраты) | K35: =K24-K25 -> 0
A36: =VLOOKUP(INT((ROW()-1)/17)+1,Справочник!A:D,3,0) -> Январь неделя 3 (18-24 янв.) | B36: =B$2 -> 0 | C36: 0 | D36: 0 | E36: 0 | F36: 0 | G36: 0 | H36: 0 | I36: 0 | J36: 0 | K36: ='Учет данных'!K38 -> 0
A37: Клики | K37: =SUM(B37:J37) -> 0
A38: Заявки | K38: 0
A39: Встречи | K39: 0
A40: Продажи | K40: 0
A41: Выручка | K41: 0
A42: затраты | K42: 0
A44: CVкл-заявки | K44: =IF(K37>0,K38/K37,0) -> 0
A45: CVзаяв-встр | K45: 0
A46: CVвстр-пр | K46: 0
A47: Цена клика | K47: =IF(K37>0,K$8/K37,0) -> 0
A48: Цена заявки | K48: 0
A49: Цена клиента | K49: 0
A50: Средн чек | K50: =IF(K40>0,K41/K40,0) -> 0
A51: ROI | K51: =IF(K42>0,(K41-K42)/K42,0) -> 0
A52: прибыль (-затраты) | K52: =K41-K42 -> 0
A53: =VLOOKUP(INT((ROW()-1)/17)+1,Справочник!A:D,3,0) -> Январь неделя 4 (25-31 янв.) | B53: =B$2 -> 0 | C53: 0 | D53: 0 | E53: 0 | F53: 0 | G53: 0 | H53: 0 | I53: 0 | J53: 0 | K53: ='Учет данных'!K55 -> 0
A54: Клики | K54: =SUM(B54:J54) -> 0
A55: Заявки | K55: 0
A56: Встречи | K56: 0
A57: Продажи | K57: 0
A58: Выручка | K58: 0
A59: затраты | K59: 0
A61: CVкл-заявки | K61: =IF(K54>0,K55/K54,0) -> 0
A62: CVзаяв-встр | K62: 0
A63: CVвстр-пр | K63: 0
A64: Цена клика | K64: =IF(K54>0,K$8/K54,0) -> 0
A65: Цена заявки | K65: 0
A66: Цена клиента | K66: 0
A67: Средн чек | K67: =IF(K57>0,K58/K57,0) -> 0
A68: ROI | K68: =IF(K59>0,(K58-K59)/K59,0) -> 0
A69: прибыль (-затраты) | K69: =K58-K59 -> 0
A70: =VLOOKUP(INT((ROW()-1)/17)+1,Справочник!A:D,3,0) -> Февраль неделя 1 (01-07 фев.) | B70: =B$2 -> 0 | C70: 0 | D70: 0 | E70: 0 | F70: 0 | G70: 0 | H70: 0 | I70: 0 | J70: 0 | K70: ='Учет данных'!K72 -> 0
A71: Клики | K71: =SUM(B71:J71) -> 0
A72: Заявки | K72: 0
A73: Встречи | K73: 0
A74: Продажи | K74: 0
A75: Выручка | K75: 0
A76: затраты | K76: =SUM(B76:J76) -> 0
A78: CVкл-заявки | K78: =IF(K71>0,K72/K71,0) -> 0
A79: CVзаяв-встр | K79: 0
A80: CVвстр-пр | K80: 0
A81: Цена клика | K81: =IF(K71>0,K$8/K71,0) -> 0
A82: Цена заявки | K82: 0
A83: Цена клиента | K83: 0
A84: Средн чек | K84: =IF(K74>0,K75/K74,0) -> 0
A85: ROI | K85: =IF(K76>0,(K75-K76)/K76,0) -> 0
A86: прибыль (-затраты) | K86: =K75-K76 -> 0
A87: =VLOOKUP(INT((ROW()-1)/17)+1,Справочник!A:D,3,0) -> Февраль неделя 2 (08-14 фев.) | B87: =B$2 -> 0 | C87: 0 | D87: 0 | E87: 0 | F87: 0 | G87: 0 | H87: 0 | I87: 0 | J87: 0 | K87: ='Учет данных'!K89 -> 0
A88: Клики | K88: =SUM(B88:J88) -> 0
A89: Заявки | K89: =SUM(B89:J89) -> 0
A90: Встречи | K90: 0
A91: Продажи | K91: 0
A92: Выручка | K92: 0
A93: затраты | K93: 0
A95: CVкл-заявки | K95: =IF(K88>0,K89/K88,0) -> 0
A96: CVзаяв-встр | K96: 0
A97: CVвстр-пр | K97: 0
A98: Цена клика | K98: =IF(K88>0,K$8/K88,0) -> 0
A99: Цена заявки | K99: 0
A100: Цена клиента | K100: 0
A101: Средн чек | K101: =IF(K91>0,K92/K91,0) -> 0
A102: ROI | K102: =IF(K93>0,(K92-K93)/K93,0) -> 0
A103: прибыль (-затраты) | K103: =K92-K93 -> 0
A104: =VLOOKUP(INT((ROW()-1)/17)+1,Справочник!A:D,3,0) -> Февраль неделя 3 (15-21 фев.) | B104: =B$2 -> 0 | C104: 0 | D104: 0 | E104: 0 | F104: 0 | G104: 0 | H104: 0 | I104: 0 | J104: 0 | K104: ='Учет данных'!K106 -> 0
A105: Клики | K105: =SUM(B105:J105) -> 0
A106: Заявки | K106: 0
A107: Встречи | K107: 0
A108: Продажи | K108: 0
A109: Выручка | K109: 0
A110: затраты | K110: 0
A112: CVкл-заявки | K112: =IF(K105>0,K106/K105,0) -> 0
A113: CVзаяв-встр | K113: 0
A114: CVвстр-пр | K114: 0
A115: Цена клика | K115: =IF(K105>0,K$8/K105,0) -> 0
A116: Цена заявки | K116: 0
A117: Цена клиента | K117: 0
A118: Средн чек | K118: =IF(K108>0,K109/K108,0) -> 0
A119: ROI | K119: =IF(K110>0,(K109-K110)/K110,0) -> 0
A120: прибыль (-затраты) | K120: =K109-K110 -> 0
A121: =VLOOKUP(INT((ROW()-1)/17)+1,Справочник!A:D,3,0) -> Февраль неделя 4 (22-29 фев.) | B121: =B$2 -> 0 | C121: 0 | D121: 0 | E121: 0 | F121: 0 | G121: 0 | H121: 0 | I121: 0 | J121: 0 | K121: ='Учет данных'!K123 -> 0
A122: Клики | K122: =SUM(B122:J122) -> 0
A123: Заявки | K123: 0
A124: Встречи | K124: 0
A125: Продажи | K125: 0
A126: Выручка | K126: 0
A127: затраты | K127: 0
A129: CVкл-заявки | K129: =IF(K122>0,K123/K122,0) -> 0
A130: CVзаяв-встр | K130: 0
A131: CVвстр-пр | K131: 0
A132: Цена клика | K132: =IF(K122>0,K$8/K122,0) -> 0
A133: Цена заявки | K133: 0
A134: Цена клиента | K134: 0
A135: Средн чек | K135: =IF(K125>0,K126/K125,0) -> 0
A136: ROI | K136: =IF(K127>0,(K126-K127)/K127,0) -> 0
A137: прибыль (-затраты) | K137: =K126-K127 -> 0
A138: =VLOOKUP(INT((ROW()-1)/17)+1,Справочник!A:D,3,0) -> Март неделя 1 (01-06 мар.) | B138: =B$2 -> 0 | C138: 0 | D138: 0 | E138: 0 | F138: 0 | G138: 0 | H138: 0 | I138: 0 | J138: 0 | K138: ='Учет данных'!K140 -> 0
A139: Клики | K139: =SUM(B139:J139) -> 0
A140: Заявки | K140: 0
A141: Встречи | K141: 0
A142: Продажи | K142: 0
A143: Выручка | K143: 0
A144: затраты | K144: =SUM(B144:J144) -> 0
A146: CVкл-заявки | K146: =IF(K139>0,K140/K139,0) -> 0
A147: CVзаяв-встр | K147: 0
A148: CVвстр-пр | K148: 0
A149: Цена клика | K149: =IF(K139>0,K$8/K139,0) -> 0
A150: Цена заявки | K150: 0
A151: Цена клиента | K151: 0
A152: Средн чек | K152: =IF(K142>0,K143/K142,0) -> 0
A153: ROI | K153: =IF(K144>0,(K143-K144)/K144,0) -> 0
A154: прибыль (-затраты) | K154: =K143-K144 -> 0
A155: =VLOOKUP(INT((ROW()-1)/17)+1,Справочник!A:D,3,0) -> Март неделя 2 (07-13 мар.) | B155: =B$2 -> 0 | C155: 0 | D155: 0 | E155: 0 | F155: 0 | G155: 0 | H155: 0 | I155: 0 | J155: 0 | K155: ='Учет данных'!K157 -> 0
A156: Клики | K156: =SUM(B156:J156) -> 0
A157: Заявки | K157: =SUM(B157:J157) -> 0
A158: Встречи | K158: 0
A159: Продажи | K159: 0
A160: Выручка | K160: 0
A161: затраты | K161: =SUM(B161:J161) -> 0
A163: CVкл-заявки | K163: =IF(K156>0,K157/K156,0) -> 0
A164: CVзаяв-встр | K164: 0
A165: CVвстр-пр | K165: 0
A166: Цена клика | K166: =IF(K156>0,K$8/K156,0) -> 0
A167: Цена заявки | K167: 0
A168: Цена клиента | K168: 0
A169: Средн чек | K169: =IF(K159>0,K160/K159,0) -> 0
A170: ROI | K170: =IF(K161>0,(K160-K161)/K161,0) -> 0
A171: прибыль (-затраты) | K171: =K160-K161 -> 0
A172: =VLOOKUP(INT((ROW()-1)/17)+1,Справочник!A:D,3,0) -> Март неделя 3 (14-20 мар.) | B172: =B$2 -> 0 | C172: 0 | D172: 0 | E172: 0 | F172: 0 | G172: 0 | H172: 0 | I172: 0 | J172: 0 | K172: ='Учет данных'!K174 -> 0
A173: Клики | K173: =SUM(B173:J173) -> 0
A174: Заявки | K174: 0
A175: Встречи | K175: 0
A176: Продажи | K176: 0
A177: Выручка | K177: 0
A178: затраты | K178: =SUM(B178:J178) -> 0
A180: CVкл-заявки | K180: =IF(K173>0,K174/K173,0) -> 0
A181: CVзаяв-встр | K181: 0
A182: CVвстр-пр | K182: 0
A183: Цена клика | K183: =IF(K173>0,K$8/K173,0) -> 0
A184: Цена заявки | K184: 0
A185: Цена клиента | K185: 0
A186: Средн чек | K186: =IF(K176>0,K177/K176,0) -> 0
A187: ROI | K187: =IF(K178>0,(K177-K178)/K178,0) -> 0
A188: прибыль (-затраты) | K188: =K177-K178 -> 0
A189: =VLOOKUP(INT((ROW()-1)/17)+1,Справочник!A:D,3,0) -> Март неделя 4 (21-31 мар.) | B189: =B$2 -> 0 | C189: 0 | D189: 0 | E189: 0 | F189: 0 | G189: 0 | H189: 0 | I189: 0 | J189: 0 | K189: ='Учет данных'!K191 -> 0
A190: Клики | K190: =SUM(B190:J190) -> 0
A191: Заявки | K191: 0
A192: Встречи | K192: 0
A193: Продажи | K193: 0
A194: Выручка | K194: 0
A195: затраты | K195: =SUM(B195:J195) -> 0
A197: CVкл-заявки | K197: =IF(K190>0,K191/K190,0) -> 0
A198: CVзаяв-встр | K198: 0
A199: CVвстр-пр | K199: 0
A200: Цена клика | K200: =IF(K190>0,K$8/K190,0) -> 0
A201: Цена заявки | K201: 0
A202: Цена клиента | K202: 0
A203: Средн чек | K203: =IF(K193>0,K194/K193,0) -> 0
A204: ROI | K204: =IF(K195>0,(K194-K195)/K195,0) -> 0
A205: прибыль (-затраты) | K205: =K194-K195 -> 0
A206: =VLOOKUP(INT((ROW()-1)/17)+1,Справочник!A:D,3,0) -> Апрель неделя 1 (01-10 апр.) | B206: =B$2 -> 0 | C206: 0 | D206: 0 | E206: 0 | F206: 0 | G206: 0 | H206: 0 | I206: 0 | J206: 0 | K206: ='Учет данных'!K208 -> 0
A207: Клики | K207: =SUM(B207:J207) -> 0
A208: Заявки | K208: 0
A209: Встречи | K209: 0
A210: Продажи | K210: 0
A211: Выручка | K211: 0
... 570 more rows

Sheet Справочник (hidden)
A1: № | B1: Неделя | C1: Описание | D1: Месяц | E1: Месяц | G1: 1 | H1: Клики | I1: 1 | N1: Месяц
A2: 1 | B2: Январь неделя 1 | C2: Январь неделя 1 (01-10 янв.) | D2: 1 | E2: =LEFT(B2,SEARCH(" ",B2)-1) -> Январь | G2: 2 | H2: Заявки | I2: 2 | M2: 1 | N2: Январь | O2: 1
A3: 2 | B3: Январь неделя 2 | C3: Январь неделя 2 (11-17 янв.) | D3: 1 | E3: =LEFT(B3,SEARCH(" ",B3)-1) -> Январь | G3: 3 | H3: Встречи | I3: 3 | M3: 2 | N3: Февраль | O3: 2
A4: 3 | B4: Январь неделя 3 | C4: Январь неделя 3 (18-24 янв.) | D4: 1 | E4: Январь | G4: 4 | H4: Продажи | I4: 4 | M4: 3 | N4: Март | O4: 3
A5: 4 | B5: Январь неделя 4 | C5: Январь неделя 4 (25-31 янв.) | D5: 1 | E5: Январь | G5: 5 | H5: Выручка | I5: 5 | J5: д2 | M5: 4 | N5: Апрель | O5: 4
A6: 5 | B6: Февраль неделя 1 | C6: Февраль неделя 1 (01-07 фев.) | D6: 2 | E6: Февраль | G6: 6 | H6: затраты | I6: 6 | J6: д2 | M6: 5 | N6: Май | O6: 5
A7: 6 | B7: Февраль неделя 2 | C7: Февраль неделя 2 (08-14 фев.) | D7: 2 | E7: Февраль | G7: 7 | H7: CVклили-заявки | I7: 8 | J7: пр | M7: 6 | N7: Июнь | O7: 6
A8: 7 | B8: Февраль неделя 3 | C8: Февраль неделя 3 (15-21 фев.) | D8: 2 | E8: Февраль | G8: 8 | H8: CVзаявки-встречи | I8: 9 | J8: пр | M8: 7 | N8: Июль | O8: 7
A9: 8 | B9: Февраль неделя 4 | C9: Февраль неделя 4 (22-29 фев.) | D9: 2 | E9: Февраль | G9: 9 | H9: CVвстречи-продажи | I9: 10 | J9: пр | M9: 8 | N9: Август | O9: 8
A10: 9 | B10: Март неделя 1 | C10: Март неделя 1 (01-06 мар.) | D10: 3 | E10: Март | G10: 10 | H10: Цена клика | I10: 11 | J10: д | M10: 9 | N10: Сентябрь | O10: 9
A11: 10 | B11: Март неделя 2 | C11: Март неделя 2 (07-13 мар.) | D11: 3 | E11: Март | G11: 11 | H11: Цена заявки | I11: 12 | J11: д | M11: 10 | N11: Октябрь | O11: 10
A12: 11 | B12: Март неделя 3 | C12: Март неделя 3 (14-20 мар.) | D12: 3 | E12: Март | G12: 12 | H12: Цена клиента | I12: 13 | J12: д | M12: 11 | N12: Ноябрь | O12: 11
A13: 12 | B13: Март неделя 4 | C13: Март неделя 4 (21-31 мар.) | D13: 3 | E13: Март | G13: 13 | H13: Средн чек | I13: 14 | J13: д2 | M13: 12 | N13: Декабрь | O13: 12
A14: 13 | B14: Апрель неделя 1 | C14: Апрель неделя 1 (01-10 апр.) | D14: 4 | E14: Апрель | G14: 14 | H14: ROI | I14: 15 | J14: пр2
A15: 14 | B15: Апрель неделя 2 | C15: Апрель неделя 2 (11-17 апр.) | D15: 4 | E15: Апрель | G15: 15 | H15: прибыль (-затраты) | I15: 16 | J15: д2
A16: 15 | B16: Апрель неделя 3 | C16: Апрель неделя 3 (18-24 апр.) | D16: 4 | E16: Апрель
A17: 16 | B17: Апрель неделя 4 | C17: Апрель неделя 4 (25-30 апр.) | D17: 4 | E17: Апрель
A18: 17 | B18: Май неделя 1 | C18: Май неделя 1 (01-08 мая) | D18: 5 | E18: Май
A19: 18 | B19: Май неделя 2 | C19: Май неделя 2 (09-15 мая) | D19: 5 | E19: Май
A20: 19 | B20: Май неделя 3 | C20: Май неделя 3 (16-22 мая) | D20: 5 | E20: Май
A21: 20 | B21: Май неделя 4 | C21: Май неделя 4 (23-31 мая) | D21: 5 | E21: Май
A22: 21 | B22: Июнь неделя 1 | C22: Июнь неделя 1 (01-05 июн.) | D22: 6 | E22: Июнь
A23: 22 | B23: Июнь неделя 2 | C23: Июнь неделя 2 (06-12 июн.) | D23: 6 | E23: Июнь
A24: 23 | B24: Июнь неделя 3 | C24: Июнь неделя 3 (13-19 июн.) | D24: 6 | E24: Июнь
A25: 24 | B25: Июнь неделя 4 | C25: Июнь неделя 4 (20-3 июн.) | D25: 6 | E25: Июнь
A26: 25 | B26: Июль неделя 1 | C26: Июль неделя 1 (01-10 июл.) | D26: 7 | E26: Июль
A27: 26 | B27: Июль неделя 2 | C27: Июль неделя 2 (11-17 июл.) | D27: 7 | E27: Июль
A28: 27 | B28: Июль неделя 3 | C28: Июль неделя 3 (18-24 июл.) | D28: 7 | E28: Июль
A29: 28 | B29: Июль неделя 4 | C29: Июль неделя 4 (25-1 июл.) | D29: 7 | E29: Июль
A30: 29 | B30: Август неделя 1 | C30: Август неделя 1 (01-07 авг.) | D30: 8 | E30: Август
A31: 30 | B31: Август неделя 2 | C31: Август неделя 2 (08-14 авг.) | D31: 8 | E31: Август
A32: 31 | B32: Август неделя 3 | C32: Август неделя 3 (15-21 авг.) | D32: 8 | E32: Август
A33: 32 | B33: Август неделя 4 | C33: Август неделя 4 (22-31 авг.) | D33: 8 | E33: Август
A34: 33 | B34: Сентябрь неделя 1 | C34: Сентябрь неделя 1 (01-11 сен.) | D34: 9 | E34: Сентябрь
A35: 34 | B35: Сентябрь неделя 2 | C35: Сентябрь неделя 2 (12-18 сен.) | D35: 9 | E35: Сентябрь
A36: 35 | B36: Сентябрь неделя 3 | C36: Сентябрь неделя 3 (19-25 сен.) | D36: 9 | E36: Сентябрь
A37: 36 | B37: Сентябрь неделя 4 | C37: Сентябрь неделя 4 (26-30 сен.) | D37: 9 | E37: Сентябрь
A38: 37 | B38: Октябрь неделя 1 | C38: Октябрь неделя 1 (01-09 окт.) | D38: 10 | E38: Октябрь
A39: 38 | B39: Октябрь неделя 2 | C39: Октябрь неделя 2 (10-16 окт.) | D39: 10 | E39: Октябрь
A40: 39 | B40: Октябрь неделя 3 | C40: Октябрь неделя 3 (17-23 окт.) | D40: 10 | E40: Октябрь
A41: 40 | B41: Октябрь неделя 4 | C41: Октябрь неделя 4 (24-31 окт.) | D41: 10 | E41: Октябрь
A42: 41 | B42: Ноябрь неделя 1 | C42: Ноябрь неделя 1 (01-06 ноя.) | D42: 11 | E42: Ноябрь
A43: 42 | B43: Ноябрь неделя 2 | C43: Ноябрь неделя 2 (07-13 ноя.) | D43: 11 | E43: Ноябрь
A44: 43 | B44: Ноябрь неделя 3 | C44: Ноябрь неделя 3 (14-20 ноя.) | D44: 11 | E44: Ноябрь
A45: 44 | B45: Ноябрь неделя 4 | C45: Ноябрь неделя 4 (21-30 ноя.) | D45: 11 | E45: Ноябрь
A46: 45 | B46: Декабрь неделя 1 | C46: Декабрь неделя 1 (01-11 дек.) | D46: 12 | E46: Декабрь
A47: 46 | B47: Декабрь неделя 2 | C47: Декабрь неделя 2 (12-18 дек.) | D47: 12 | E47: Декабрь
A48: 47 | B48: Декабрь неделя 3 | C48: Декабрь неделя 3 (19-25 дек.) | D48: 12 | E48: Декабрь
A49: 48 | B49: Декабрь неделя 4 | C49: Декабрь неделя 4 (26-31 дек.) | D49: 12 | E49: Декабрь

Sheet for_code (hidden)
A1: Week | B1: 1
A2: Type | B2: 1
